Workbook

Sheet Data Input
A1: No | B1: Yacht | C1: Skipper | D1: Length | E1: H/C | F1: P | G1: Class | I1: Start | L1: Out 1 | O1: In 1 | R1: Out 2 | U1: In 2 | X1: Finish | AB1: Elapsed | AE1: Pos | AH1: Corrected | AK1: Pos | AM1: Bridge1 | AN1: Bridge 2 | AO1: Bridge T | AP1: T | AQ1: T-B elapsed | AR1: Corr
H2: H | I2: M | J2: S | K2: H | L2: M | M2: S | N2: H | O2: M | P2: S | Q2: H | R2: M | S2: S | T2: H | U2: M | V2: S | W2: H | X2: M | Y2: S | AA2: H | AB2: M | AC2: S | AG2: H | AH2: M | AI2: S | AM2: Seconds | AN2: Seconds | AO2: Seconds | AP2: Seconds | AQ2: Seconds | AR2: Seconds
A3: 10 | B3: Flight | C3: J Farrow | D3: 29.11 | E3: -9 | G3: =IF(D3="","",IF(D3<25,"C",IF(D3<28.01,"B","A"))) -> A | H3: 10 | I3: 45 | J3: 0 | W3: 16 | X3: 45 | Y3: 54 | AA3: =INT(AQ3/3600) -> 6 | AB3: =INT((AQ3-AA3*3600)/60) -> 0 | AC3: =AQ3-(AA3*3600+AB3*60) -> 54 | AE3: =+AT3 -> 18 | AG3: =INT(AR3/3600) -> 5 | AH3: =INT((AR3-AG3*3600)/60) -> 28 | AI3: =AR3-(AG3*3600+AH3*60) -> 25.14 | AK3: =+AW3 -> 20 | AM3: =(P3+O3*60+N3*3600)-(M3+L3*60+K3*3600) -> 0 | AN3: =(V3+U3*60+T3*3600)-(S3+R3*60+Q3*3600) -> 0 | AO3: =AM3+AN3 -> 0 | AP3: =(Y3+X3*60+W3*3600)-(J3+I3*60+H3*3600) -> 21654 | AQ3: =ABS(AP3-AO3) -> 21654 | AR3: =AQ3*(0.01*(100+E3)) -> 19705.14 | AS3: =+IF(F3="",AQ3,500000) -> 21654 | AT3: =IF(F3="",+RANK(AS3,$AS$3:$AS$39,1),+F3) -> 18 | AU3: =+IF(AT3<4,"Trophy","") ->  | AV3: =+IF(F3="",AR3,500000) -> 19705.14 | AW3: =IF(F3="",+RANK(AV3,$AV$3:$AV$39,1),+F3) -> 20 | AX3: =+IF(AW3<4,"Trophy","") -> 
A4: 22 | B4: Moonraker | C4: P Jeckells | D4: 29.6 | E4: 2 | G4: A | H4: 11 | I4: 30 | J4: 0 | W4: 16 | X4: 37 | Y4: 35 | AA4: 5 | AB4: 7 | AC4: 35 | AE4: 6 | AG4: 5 | AH4: 13 | AI4: 44.1 | AK4: 9 | AM4: 0 | AN4: 0 | AO4: 0 | AP4: 18455 | AQ4: 18455 | AR4: 18824.1 | AS4: 18455 | AT4: 6 | AV4: 18824.1 | AW4: 9
A5: 24 | B5: Pippa | C5: G Angel | D5: 27.1 | E5: -7 | G5: B | H5: 12 | I5: 45 | J5: 0 | W5: 18 | X5: 36 | Y5: 40 | AA5: =INT(AQ5/3600) -> 5 | AB5: =INT((AQ5-AA5*3600)/60) -> 51 | AC5: =AQ5-(AA5*3600+AB5*60) -> 40 | AE5: =+AT5 -> 16 | AG5: =INT(AR5/3600) -> 5 | AH5: =INT((AR5-AG5*3600)/60) -> 27 | AI5: =AR5-(AG5*3600+AH5*60) -> 3 | AK5: =+AW5 -> 18 | AM5: =(P5+O5*60+N5*3600)-(M5+L5*60+K5*3600) -> 0 | AN5: =(V5+U5*60+T5*3600)-(S5+R5*60+Q5*3600) -> 0 | AO5: =AM5+AN5 -> 0 | AP5: =(Y5+X5*60+W5*3600)-(J5+I5*60+H5*3600) -> 21100 | AQ5: =ABS(AP5-AO5) -> 21100 | AR5: =AQ5*(0.01*(100+E5)) -> 19623 | AS5: =+IF(F5="",AQ5,500000) -> 21100 | AT5: 16 | AU5: =+IF(AT5<4,"Trophy","") ->  | AV5: =+IF(F5="",AR5,500000) -> 19623 | AW5: 18 | AX5: =+IF(AW5<4,"Trophy","") -> 
A6: 25 | B6: Melody | C6: M Wells | D6: 26 | E6: -11 | G6: B | H6: 11 | I6: 15 | J6: 0 | W6: 17 | X6: 26 | Y6: 10 | AA6: 6 | AB6: 11 | AC6: 10 | AE6: 20 | AG6: 5 | AH6: 30 | AI6: 20.3 | AK6: 22 | AM6: 0 | AN6: 0 | AO6: 0 | AP6: 22270 | AQ6: 22270 | AR6: 19820.3 | AS6: 22270 | AT6: 20 | AV6: 19820.3 | AW6: 22
A7: 52 | B7: Maidie | C7: M Barnes | D7: 43 | E7: 10 | F7: DNF | G7: A | H7: 14 | I7: 30 | J7: 0 | AA7: 14 | AB7: 30 | AC7: 0 | AE7: DNF | AG7: 15 | AH7: 57 | AI7: 0 | AK7: DNF | AM7: 0 | AN7: 0 | AO7: 0 | AP7: -52200 | AQ7: 52200 | AR7: 57420 | AS7: 500000 | AT7: DNF | AV7: 500000 | AW7: DNF
A8: 79 | B8: Daisy | C8: T Ford | D8: 22 | E8: -25 | G8: C | H8: 10 | I8: 0 | J8: 0 | W8: 18 | X8: 10 | Y8: 26 | AA8: 8 | AB8: 10 | AC8: 26 | AE8: 24 | AG8: 6 | AH8: 7 | AI8: 49.5 | AK8: 25 | AM8: 0 | AN8: 0 | AO8: 0 | AP8: 29426 | AQ8: 29426 | AR8: 22069.5 | AS8: 29426 | AT8: 24 | AV8: 22069.5 | AW8: 25
A9: 87 | B9: Modwena | C9: M Cassidy | D9: 24.11 | E9: -19 | G9: C | H9: 10 | I9: 45 | J9: 0 | W9: 17 | X9: 23 | Y9: 12 | AA9: 6 | AB9: 38 | AC9: 12 | AE9: 22 | AG9: 5 | AH9: 22 | AI9: 32.52 | AK9: 15 | AM9: 0 | AN9: 0 | AO9: 0 | AP9: 23892 | AQ9: 23892 | AR9: 19352.52 | AS9: 23892 | AT9: 22 | AV9: 19352.52 | AW9: 15
A10: 141 | B10: Nirvana | C10: M Claridge | D10: 20 | E10: -23 | F10: DNS | G10: C | AA10: 0 | AB10: 0 | AC10: 0 | AE10: DNS | AG10: 0 | AH10: 0 | AI10: 0 | AK10: DNS | AM10: 0 | AN10: 0 | AO10: 0 | AP10: 0 | AQ10: 0 | AR10: 0 | AS10: 500000 | AT10: DNS | AV10: 500000 | AW10: DNS
A11: 149 | B11: Stella Genesta | C11: M Burwood | D11: 30 | E11: -19 | G11: A | H11: 11 | I11: 0 | J11: 0 | W11: 17 | X11: 47 | Y11: 44 | AA11: =INT(AQ11/3600) -> 6 | AB11: =INT((AQ11-AA11*3600)/60) -> 47 | AC11: =AQ11-(AA11*3600+AB11*60) -> 44 | AE11: =+AT11 -> 23 | AG11: =INT(AR11/3600) -> 5 | AH11: =INT((AR11-AG11*3600)/60) -> 30 | AI11: =AR11-(AG11*3600+AH11*60) -> 15.84 | AK11: =+AW11 -> 21 | AM11: =(P11+O11*60+N11*3600)-(M11+L11*60+K11*3600) -> 0 | AN11: =(V11+U11*60+T11*3600)-(S11+R11*60+Q11*3600) -> 0 | AO11: =AM11+AN11 -> 0 | AP11: =(Y11+X11*60+W11*3600)-(J11+I11*60+H11*3600) -> 24464 | AQ11: =ABS(AP11-AO11) -> 24464 | AR11: =AQ11*(0.01*(100+E11)) -> 19815.84 | AS11: =+IF(F11="",AQ11,500000) -> 24464 | AT11: 23 | AU11: =+IF(AT11<4,"Trophy","") ->  | AV11: =+IF(F11="",AR11,500000) -> 19815.84 | AW11: 21 | AX11: =+IF(AW11<4,"Trophy","") -> 
A12: 179 | B12: Waxwing | C12: R & S Clayton | D12: 27 | E12: -8 | G12: B | H12: 12 | I12: 15 | J12: 0 | W12: 17 | X12: 58 | Y12: 46 | AA12: 5 | AB12: 43 | AC12: 46 | AE12: 13 | AG12: 5 | AH12: 16 | AI12: 15.92 | AK12: 11 | AM12: 0 | AN12: 0 | AO12: 0 | AP12: 20626 | AQ12: 20626 | AR12: 18975.92 | AS12: 20626 | AT12: =IF(F12="",+RANK(AS12,$AS$3:$AS$39,1),+F12) -> 13 | AV12: 18975.92 | AW12: =IF(F12="",+RANK(AV12,$AV$3:$AV$39,1),+F12) -> 11
A13: 199 | B13: Morning Calm | C13: W Clark | D13: 26 | E13: -9 | G13: B | H13: 11 | I13: 30 | J13: 0 | W13: 17 | X13: 0 | Y13: 39 | AA13: 5 | AB13: 30 | AC13: 39 | AE13: 8 | AG13: 5 | AH13: 0 | AI13: 53.49 | AK13: 6 | AM13: 0 | AN13: 0 | AO13: 0 | AP13: 19839 | AQ13: 19839 | AR13: 18053.49 | AS13: 19839 | AT13: 8 | AV13: 18053.49 | AW13: 6
A14: 216 | B14: Tamara | C14: N Heath | D14: 24.8 | E14: -16 | F14: P | G14: C | H14: 10 | I14: 45 | J14: 0 | W14: 16 | X14: 58 | Y14: 14 | AA14: =INT(AQ14/3600) -> 6 | AB14: =INT((AQ14-AA14*3600)/60) -> 13 | AC14: =AQ14-(AA14*3600+AB14*60) -> 14 | AE14: =+AT14 -> P | AG14: =INT(AR14/3600) -> 5 | AH14: =INT((AR14-AG14*3600)/60) -> 13 | AI14: =AR14-(AG14*3600+AH14*60) -> 30.96 | AK14: =+AW14 -> P | AM14: =(P14+O14*60+N14*3600)-(M14+L14*60+K14*3600) -> 0 | AN14: =(V14+U14*60+T14*3600)-(S14+R14*60+Q14*3600) -> 0 | AO14: =AM14+AN14 -> 0 | AP14: =(Y14+X14*60+W14*3600)-(J14+I14*60+H14*3600) -> 22394 | AQ14: =ABS(AP14-AO14) -> 22394 | AR14: =AQ14*(0.01*(100+E14)) -> 18810.96 | AS14: =+IF(F14="",AQ14,500000) -> 500000 | AT14: =IF(F14="",+RANK(AS14,$AS$3:$AS$39,1),+F14) -> P | AU14: =+IF(AT14<4,"Trophy","") ->  | AV14: =+IF(F14="",AR14,500000) -> 500000 | AW14: =IF(F14="",+RANK(AV14,$AV$3:$AV$39,1),+F14) -> P | AX14: =+IF(AW14<4,"Trophy","") -> 
A15: 217 | B15: Melinda | C15: P Howes | D15: 27.11 | E15: 1 | G15: B | H15: 13 | I15: 0 | J15: 0 | W15: 17 | X15: 50 | Y15: 38 | AA15: 4 | AB15: 50 | AC15: 38 | AE15: 5 | AG15: 4 | AH15: 53 | AI15: 32.38 | AK15: 4 | AM15: 0 | AN15: 0 | AO15: 0 | AP15: 17438 | AQ15: 17438 | AR15: 17612.38 | AS15: 17438 | AT15: =IF(F15="",+RANK(AS15,$AS$3:$AS$39,1),+F15) -> 5 | AV15: 17612.38 | AW15: =IF(F15="",+RANK(AV15,$AV$3:$AV$39,1),+F15) -> 4
A16: 218 | B16: Mystery | C16: M Ford | D16: 26 | E16: -7 | F16: RTD | G16: B | H16: 13 | I16: 45 | J16: 0 | AA16: 13 | AB16: 45 | AC16: 0 | AE16: RTD | AG16: 12 | AH16: 47 | AI16: 15 | AK16: RTD | AM16: 0 | AN16: 0 | AO16: 0 | AP16: -49500 | AQ16: 49500 | AR16: 46035 | AS16: 500000 | AT16: RTD | AV16: 500000 | AW16: RTD
A17: 224 | B17: Anna | C17: R Branscombe | D17: 25 | E17: -10 | G17: B | H17: 12 | I17: 30 | J17: 0 | W17: 18 | X17: 34 | Y17: 5 | AA17: 6 | AB17: 4 | AC17: 5 | AE17: 19 | AG17: 5 | AH17: 27 | AI17: 40.5 | AK17: 19 | AM17: 0 | AN17: 0 | AO17: 0 | AP17: 21845 | AQ17: 21845 | AR17: 19660.5 | AS17: 21845 | AT17: 19 | AV17: 19660.5 | AW17: 19
A18: 240 | B18: Avocet | C18: R Branford | D18: 28 | E18: -16 | G18: B | H18: 12 | I18: 30 | J18: 0 | W18: 18 | X18: 45 | Y18: 50 | AA18: 6 | AB18: 15 | AC18: 50 | AE18: 21 | AG18: 5 | AH18: 15 | AI18: 42 | AK18: 10 | AM18: 0 | AN18: 0 | AO18: 0 | AP18: 22550 | AQ18: 22550 | AR18: 18942 | AS18: 22550 | AT18: 21 | AV18: 18942 | AW18: 10
A19: 250 | B19: Storm | C19: M Thwaites | D19: 35 | E19: 16 | G19: A | H19: 13 | I19: 0 | J19: 0 | W19: 17 | X19: 13 | Y19: 56 | AA19: =INT(AQ19/3600) -> 4 | AB19: =INT((AQ19-AA19*3600)/60) -> 13 | AC19: =AQ19-(AA19*3600+AB19*60) -> 56 | AE19: =+AT19 -> 2 | AG19: =INT(AR19/3600) -> 4 | AH19: =INT((AR19-AG19*3600)/60) -> 54 | AI19: =AR19-(AG19*3600+AH19*60) -> 33.76 | AK19: =+AW19 -> 5 | AM19: =(P19+O19*60+N19*3600)-(M19+L19*60+K19*3600) -> 0 | AN19: =(V19+U19*60+T19*3600)-(S19+R19*60+Q19*3600) -> 0 | AO19: =AM19+AN19 -> 0 | AP19: =(Y19+X19*60+W19*3600)-(J19+I19*60+H19*3600) -> 15236 | AQ19: =ABS(AP19-AO19) -> 15236 | AR19: =AQ19*(0.01*(100+E19)) -> 17673.76 | AS19: =+IF(F19="",AQ19,500000) -> 15236 | AT19: 2 | AU19: =+IF(AT19<4,"Trophy","") -> Trophy | AV19: =+IF(F19="",AR19,500000) -> 17673.76 | AW19: 5 | AX19: =+IF(AW19<4,"Trophy","") -> 
A20: 262 | B20: Jessie May | C20: C Dugdale | D20: 27.11 | E20: -5 | G20: B | H20: 12 | I20: 30 | J20: 0 | W20: 18 | X20: 5 | Y20: 24 | AA20: 5 | AB20: 35 | AC20: 24 | AE20: 10 | AG20: 5 | AH20: 18 | AI20: 37.8 | AK20: 13 | AM20: 0 | AN20: 0 | AO20: 0 | AP20: 20124 | AQ20: 20124 | AR20: 19117.8 | AS20: 20124 | AT20: 10 | AV20: 19117.8 | AW20: 13
A21: 274 | B21: Elfin | C21: A Bond | D21: 20 | E21: -27 | G21: C | H21: 10 | I21: 0 | J21: 0 | W21: 18 | X21: 16 | Y21: 55 | AA21: 8 | AB21: 16 | AC21: 55 | AE21: 25 | AG21: 6 | AH21: 2 | AI21: 44.95 | AK21: 24 | AM21: 0 | AN21: 0 | AO21: 0 | AP21: 29815 | AQ21: 29815 | AR21: 21764.95 | AS21: 29815 | AT21: 25 | AV21: 21764.95 | AW21: 24
A22: 323 | B22: Starlight Lady | C22: N Matthews | D22: 30 | E22: 13 | G22: A | H22: 12 | I22: 45 | J22: 0 | W22: 17 | X22: 29 | Y22: 29 | AA22: 4 | AB22: 44 | AC22: 29 | AE22: 3 | AG22: 5 | AH22: 21 | AI22: 27.97 | AK22: 14 | AM22: 0 | AN22: 0 | AO22: 0 | AP22: 17069 | AQ22: 17069 | AR22: 19287.97 | AS22: 17069 | AT22: 3 | AU22: Trophy | AV22: 19287.97 | AW22: 14
A23: 368 | B23: Wandering Rose | C23: D Radley | D23: 31.6 | E23: -2 | G23: A | H23: 11 | I23: 15 | J23: 0 | W23: 16 | X23: 47 | Y23: 52 | AA23: 5 | AB23: 32 | AC23: 52 | AE23: 9 | AG23: 5 | AH23: 26 | AI23: 12.56 | AK23: 17 | AM23: 0 | AN23: 0 | AO23: 0 | AP23: 19972 | AQ23: 19972 | AR23: 19572.56 | AS23: 19972 | AT23: 9 | AV23: 19572.56 | AW23: 17
A24: 369 | B24: Moonshadow | C24: N Hovey | D24: 31.6 | E24: 5 | G24: A | H24: 12 | I24: 45 | J24: 0 | W24: 17 | X24: 31 | Y24: 36 | AA24: 4 | AB24: 46 | AC24: 36 | AE24: 4 | AG24: 5 | AH24: 0 | AI24: 55.8 | AK24: 7 | AM24: 0 | AN24: 0 | AO24: 0 | AP24: 17196 | AQ24: 17196 | AR24: 18055.8 | AS24: 17196 | AT24: 4 | AV24: 18055.8 | AW24: 7
A25: 370 | B25: Glory | C25: C Brown | D25: 35 | E25: -6 | G25: A | H25: 13 | I25: 0 | J25: 0 | W25: 18 | X25: 45 | Y25: 46 | AA25: 5 | AB25: 45 | AC25: 46 | AE25: 14 | AG25: 5 | AH25: 25 | AI25: 1.24 | AK25: 16 | AM25: 0 | AN25: 0 | AO25: 0 | AP25: 20746 | AQ25: 20746 | AR25: 19501.24 | AS25: 20746 | AT25: 14 | AV25: 19501.24 | AW25: 16
A26: 375 | B26: Amaryllis | C26: C Tuckett | D26: 21.4 | E26: -10 | G26: C | H26: 12 | I26: 15 | J26: 0 | W26: 17 | X26: 53 | Y26: 29 | AA26: =INT(AQ26/3600) -> 5 | AB26: =INT((AQ26-AA26*3600)/60) -> 38 | AC26: =AQ26-(AA26*3600+AB26*60) -> 29 | AE26: =+AT26 -> 11 | AG26: =INT(AR26/3600) -> 5 | AH26: =INT((AR26-AG26*3600)/60) -> 4 | AI26: =AR26-(AG26*3600+AH26*60) -> 38.1 | AK26: =+AW26 -> 8 | AM26: =(P26+O26*60+N26*3600)-(M26+L26*60+K26*3600) -> 0 | AN26: =(V26+U26*60+T26*3600)-(S26+R26*60+Q26*3600) -> 0 | AO26: =AM26+AN26 -> 0 | AP26: =(Y26+X26*60+W26*3600)-(J26+I26*60+H26*3600) -> 20309 | AQ26: =ABS(AP26-AO26) -> 20309 | AR26: =AQ26*(0.01*(100+E26)) -> 18278.1 | AS26: =+IF(F26="",AQ26,500000) -> 20309 | AT26: 11 | AU26: =+IF(AT26<4,"Trophy","") ->  | AV26: =+IF(F26="",AR26,500000) -> 18278.1 | AW26: 8 | AX26: =+IF(AW26<4,"Trophy","") -> 
A27: 400 | B27: Swallow | C27: K Halifax | D27: 26 | E27: -7 | G27: B | H27: 12 | I27: 15 | J27: 0 | W27: 18 | X27: 14 | Y27: 53 | AA27: 5 | AB27: 59 | AC27: 53 | AE27: 17 | AG27: 5 | AH27: 34 | AI27: 41.49 | AK27: 23 | AM27: 0 | AN27: 0 | AO27: 0 | AP27: 21593 | AQ27: 21593 | AR27: 20081.49 | AS27: 21593 | AT27: 17 | AV27: 20081.49 | AW27: 23
A28: 403 | B28: May | C28: K Rhead | D28: 30 | E28: -10 | F28: DNF | G28: A | H28: 12 | I28: 45 | J28: 0 | AA28: =INT(AQ28/3600) -> 12 | AB28: =INT((AQ28-AA28*3600)/60) -> 45 | AC28: =AQ28-(AA28*3600+AB28*60) -> 0 | AE28: =+AT28 -> DNF | AG28: =INT(AR28/3600) -> 11 | AH28: =INT((AR28-AG28*3600)/60) -> 28 | AI28: =AR28-(AG28*3600+AH28*60) -> 30 | AK28: =+AW28 -> DNF | AM28: =(P28+O28*60+N28*3600)-(M28+L28*60+K28*3600) -> 0 | AN28: =(V28+U28*60+T28*3600)-(S28+R28*60+Q28*3600) -> 0 | AO28: =AM28+AN28 -> 0 | AP28: =(Y28+X28*60+W28*3600)-(J28+I28*60+H28*3600) -> -45900 | AQ28: =ABS(AP28-AO28) -> 45900 | AR28: =AQ28*(0.01*(100+E28)) -> 41310 | AS28: =+IF(F28="",AQ28,500000) -> 500000 | AT28: DNF | AU28: =+IF(AT28<4,"Trophy","") ->  | AV28: =+IF(F28="",AR28,500000) -> 500000 | AW28: DNF | AX28: =+IF(AW28<4,"Trophy","") -> 
A29: 416 | B29: Alice Rose | C29: T Riches | D29: 28.6 | E29: -7 | G29: A | H29: 11 | I29: 0 | J29: 0 | W29: 16 | X29: 41 | Y29: 22 | AA29: 5 | AB29: 41 | AC29: 22 | AE29: 12 | AG29: 5 | AH29: 17 | AI29: 28.26 | AK29: 12 | AM29: 0 | AN29: 0 | AO29: 0 | AP29: 20482 | AQ29: 20482 | AR29: 19048.26 | AS29: 20482 | AT29: 12 | AV29: 19048.26 | AW29: 12
A30: 417 | B30: Stellar | C30: T Frary | D30: 31.4 | E30: 17 | G30: A | H30: 14 | I30: 0 | J30: 0 | W30: 17 | X30: 53 | Y30: 34 | AA30: 3 | AB30: 53 | AC30: 34 | AE30: 1 | AG30: 4 | AH30: 33 | AI30: 16.38 | AK30: 1 | AM30: 0 | AN30: 0 | AO30: 0 | AP30: 14014 | AQ30: 14014 | AR30: 16396.38 | AS30: 14014 | AT30: 1 | AU30: Trophy | AV30: 16396.38 | AW30: 1 | AX30: Trophy
A31: 418 | B31: Tinkerbell | C31: A Lincoln | D31: 25.2 | E31: -8 | G31: B | H31: 11 | I31: 45 | J31: 0 | W31: 17 | X31: 1 | Y31: 18 | AA31: 5 | AB31: 16 | AC31: 18 | AE31: 7 | AG31: 4 | AH31: 50 | AI31: 59.76 | AK31: 3 | AM31: 0 | AN31: 0 | AO31: 0 | AP31: 18978 | AQ31: 18978 | AR31: 17459.76 | AS31: 18978 | AT31: 7 | AV31: 17459.76 | AW31: 3 | AX31: Trophy
A32: 420 | B32: Lyra | C32: P Carrington | D32: 30 | E32: 16 | F32: DNS | G32: A | AA32: =INT(AQ32/3600) -> 0 | AB32: =INT((AQ32-AA32*3600)/60) -> 0 | AC32: =AQ32-(AA32*3600+AB32*60) -> 0 | AE32: =+AT32 -> DNS | AG32: =INT(AR32/3600) -> 0 | AH32: =INT((AR32-AG32*3600)/60) -> 0 | AI32: =AR32-(AG32*3600+AH32*60) -> 0 | AK32: =+AW32 -> DNS | AM32: =(P32+O32*60+N32*3600)-(M32+L32*60+K32*3600) -> 0 | AN32: =(V32+U32*60+T32*3600)-(S32+R32*60+Q32*3600) -> 0 | AO32: =AM32+AN32 -> 0 | AP32: =(Y32+X32*60+W32*3600)-(J32+I32*60+H32*3600) -> 0 | AQ32: =ABS(AP32-AO32) -> 0 | AR32: =AQ32*(0.01*(100+E32)) -> 0 | AS32: =+IF(F32="",AQ32,500000) -> 500000 | AT32: DNS | AU32: =+IF(AT32<4,"Trophy","") ->  | AV32: =+IF(F32="",AR32,500000) -> 500000 | AW32: DNS | AX32: =+IF(AW32<4,"Trophy","") -> 
A33: 429 | B33: Pickle | C33: P Montague | D33: 22.6 | E33: -16 | G33: C | H33: 11 | I33: 45 | J33: 0 | W33: 17 | X33: 30 | Y33: 55 | AA33: 5 | AB33: 45 | AC33: 55 | AE33: 15 | AG33: 4 | AH33: 50 | AI33: 34.2 | AK33: 2 | AM33: 0 | AN33: 0 | AO33: 0 | AP33: 20755 | AQ33: 20755 | AR33: 17434.2 | AS33: 20755 | AT33: 15 | AV33: 17434.2 | AW33: 2 | AX33: Trophy
A40: xx
A42: =COUNT(A3:A41) -> 31

Sheet YNR
I1: Corrected | N1: YNR POSITION
A2: No | B2: Yacht | C2: Skipper | D2: Length | E2: H/C | F2: P | G2: Class | H2: H | I2: M | J2: S | L2: Pos
A3: 10 | B3: =+VLOOKUP(+$A3,'Data Input'!$A$3:$AX$39,2,FALSE) -> Flight | C3: =+VLOOKUP(+$A3,'Data Input'!$A$3:$AX$39,3,FALSE) -> J Farrow | D3: =+VLOOKUP(+$A3,'Data Input'!$A$3:$AX$39,4,FALSE) -> 29.11 | E3: =+VLOOKUP(+$A3,'Data Input'!$A$3:$AX$39,5,FALSE) -> -9 | F3: =+VLOOKUP(+$A3,'Data Input'!$A$3:$AX$39,6,FALSE) -> 0 | G3: =+VLOOKUP(+$A3,'Data Input'!$A$3:$AX$39,7,FALSE) -> A | H3: =+VLOOKUP($A3,'Data Input'!$A$3:$AX$39,33,FALSE) -> 5 | I3: =+VLOOKUP($A3,'Data Input'!$A$3:$AX$39,34,FALSE) -> 28 | J3: =+VLOOKUP($A3,'Data Input'!$A$3:$AX$39,35,FALSE) -> 25.14 | L3: =+VLOOKUP($A3,'Data Input'!$A$3:$AX$39,37,FALSE) -> 20
A4: 22 | B4: =+VLOOKUP(+$A4,'Data Input'!$A$3:$AX$39,2,FALSE) -> Moonraker | C4: =+VLOOKUP(+$A4,'Data Input'!$A$3:$AX$39,3,FALSE) -> P Jeckells | D4: =+VLOOKUP(+$A4,'Data Input'!$A$3:$AX$39,4,FALSE) -> 29.6 | E4: =+VLOOKUP(+$A4,'Data Input'!$A$3:$AX$39,5,FALSE) -> 2 | F4: =+VLOOKUP(+$A4,'Data Input'!$A$3:$AX$39,6,FALSE) -> 0 | G4: =+VLOOKUP(+$A4,'Data Input'!$A$3:$AX$39,7,FALSE) -> A | H4: =+VLOOKUP($A4,'Data Input'!$A$3:$AX$39,33,FALSE) -> 5 | I4: =+VLOOKUP($A4,'Data Input'!$A$3:$AX$39,34,FALSE) -> 13 | J4: =+VLOOKUP($A4,'Data Input'!$A$3:$AX$39,35,FALSE) -> 44.1 | L4: =+VLOOKUP($A4,'Data Input'!$A$3:$AX$39,37,FALSE) -> 9
A5: 24 | B5: =+VLOOKUP(+$A5,'Data Input'!$A$3:$AX$39,2,FALSE) -> Pippa | C5: =+VLOOKUP(+$A5,'Data Input'!$A$3:$AX$39,3,FALSE) -> G Angel | D5: =+VLOOKUP(+$A5,'Data Input'!$A$3:$AX$39,4,FALSE) -> 27.1 | E5: =+VLOOKUP(+$A5,'Data Input'!$A$3:$AX$39,5,FALSE) -> -7 | F5: =+VLOOKUP(+$A5,'Data Input'!$A$3:$AX$39,6,FALSE) -> 0 | G5: =+VLOOKUP(+$A5,'Data Input'!$A$3:$AX$39,7,FALSE) -> B | H5: =+VLOOKUP($A5,'Data Input'!$A$3:$AX$39,33,FALSE) -> 5 | I5: =+VLOOKUP($A5,'Data Input'!$A$3:$AX$39,34,FALSE) -> 27 | J5: =+VLOOKUP($A5,'Data Input'!$A$3:$AX$39,35,FALSE) -> 3 | L5: =+VLOOKUP($A5,'Data Input'!$A$3:$AX$39,37,FALSE) -> 18
A6: 25 | B6: =+VLOOKUP(+$A6,'Data Input'!$A$3:$AX$39,2,FALSE) -> Melody | C6: =+VLOOKUP(+$A6,'Data Input'!$A$3:$AX$39,3,FALSE) -> M Wells | D6: =+VLOOKUP(+$A6,'Data Input'!$A$3:$AX$39,4,FALSE) -> 26 | E6: =+VLOOKUP(+$A6,'Data Input'!$A$3:$AX$39,5,FALSE) -> -11 | F6: =+VLOOKUP(+$A6,'Data Input'!$A$3:$AX$39,6,FALSE) -> 0 | G6: =+VLOOKUP(+$A6,'Data Input'!$A$3:$AX$39,7,FALSE) -> B | H6: =+VLOOKUP($A6,'Data Input'!$A$3:$AX$39,33,FALSE) -> 5 | I6: =+VLOOKUP($A6,'Data Input'!$A$3:$AX$39,34,FALSE) -> 30 | J6: =+VLOOKUP($A6,'Data Input'!$A$3:$AX$39,35,FALSE) -> 20.3 | L6: =+VLOOKUP($A6,'Data Input'!$A$3:$AX$39,37,FALSE) -> 22
A7: 52 | B7: =+VLOOKUP(+$A7,'Data Input'!$A$3:$AX$39,2,FALSE) -> Maidie | C7: =+VLOOKUP(+$A7,'Data Input'!$A$3:$AX$39,3,FALSE) -> M Barnes | D7: =+VLOOKUP(+$A7,'Data Input'!$A$3:$AX$39,4,FALSE) -> 43 | E7: =+VLOOKUP(+$A7,'Data Input'!$A$3:$AX$39,5,FALSE) -> 10 | F7: =+VLOOKUP(+$A7,'Data Input'!$A$3:$AX$39,6,FALSE) -> DNF | G7: =+VLOOKUP(+$A7,'Data Input'!$A$3:$AX$39,7,FALSE) -> A | H7: =+VLOOKUP($A7,'Data Input'!$A$3:$AX$39,33,FALSE) -> 15 | I7: =+VLOOKUP($A7,'Data Input'!$A$3:$AX$39,34,FALSE) -> 57 | J7: =+VLOOKUP($A7,'Data Input'!$A$3:$AX$39,35,FALSE) -> 0 | L7: =+VLOOKUP($A7,'Data Input'!$A$3:$AX$39,37,FALSE) -> DNF
A8: 79 | B8: =+VLOOKUP(+$A8,'Data Input'!$A$3:$AX$39,2,FALSE) -> Daisy | C8: =+VLOOKUP(+$A8,'Data Input'!$A$3:$AX$39,3,FALSE) -> T Ford | D8: =+VLOOKUP(+$A8,'Data Input'!$A$3:$AX$39,4,FALSE) -> 22 | E8: =+VLOOKUP(+$A8,'Data Input'!$A$3:$AX$39,5,FALSE) -> -25 | F8: =+VLOOKUP(+$A8,'Data Input'!$A$3:$AX$39,6,FALSE) -> 0 | G8: =+VLOOKUP(+$A8,'Data Input'!$A$3:$AX$39,7,FALSE) -> C | H8: =+VLOOKUP($A8,'Data Input'!$A$3:$AX$39,33,FALSE) -> 6 | I8: =+VLOOKUP($A8,'Data Input'!$A$3:$AX$39,34,FALSE) -> 7 | J8: =+VLOOKUP($A8,'Data Input'!$A$3:$AX$39,35,FALSE) -> 49.5 | L8: =+VLOOKUP($A8,'Data Input'!$A$3:$AX$39,37,FALSE) -> 25
A9: 87 | B9: =+VLOOKUP(+$A9,'Data Input'!$A$3:$AX$39,2,FALSE) -> Modwena | C9: =+VLOOKUP(+$A9,'Data Input'!$A$3:$AX$39,3,FALSE) -> M Cassidy | D9: =+VLOOKUP(+$A9,'Data Input'!$A$3:$AX$39,4,FALSE) -> 24.11 | E9: =+VLOOKUP(+$A9,'Data Input'!$A$3:$AX$39,5,FALSE) -> -19 | F9: =+VLOOKUP(+$A9,'Data Input'!$A$3:$AX$39,6,FALSE) -> 0 | G9: =+VLOOKUP(+$A9,'Data Input'!$A$3:$AX$39,7,FALSE) -> C | H9: =+VLOOKUP($A9,'Data Input'!$A$3:$AX$39,33,FALSE) -> 5 | I9: =+VLOOKUP($A9,'Data Input'!$A$3:$AX$39,34,FALSE) -> 22 | J9: =+VLOOKUP($A9,'Data Input'!$A$3:$AX$39,35,FALSE) -> 32.52 | L9: =+VLOOKUP($A9,'Data Input'!$A$3:$AX$39,37,FALSE) -> 15
A10: 141 | B10: =+VLOOKUP(+$A10,'Data Input'!$A$3:$AX$39,2,FALSE) -> Nirvana | C10: =+VLOOKUP(+$A10,'Data Input'!$A$3:$AX$39,3,FALSE) -> M Claridge | D10: =+VLOOKUP(+$A10,'Data Input'!$A$3:$AX$39,4,FALSE) -> 20 | E10: =+VLOOKUP(+$A10,'Data Input'!$A$3:$AX$39,5,FALSE) -> -23 | F10: =+VLOOKUP(+$A10,'Data Input'!$A$3:$AX$39,6,FALSE) -> DNS | G10: =+VLOOKUP(+$A10,'Data Input'!$A$3:$AX$39,7,FALSE) -> C | H10: =+VLOOKUP($A10,'Data Input'!$A$3:$AX$39,33,FALSE) -> 0 | I10: =+VLOOKUP($A10,'Data Input'!$A$3:$AX$39,34,FALSE) -> 0 | J10: =+VLOOKUP($A10,'Data Input'!$A$3:$AX$39,35,FALSE) -> 0 | L10: =+VLOOKUP($A10,'Data Input'!$A$3:$AX$39,37,FALSE) -> DNS
A11: 149 | B11: =+VLOOKUP(+$A11,'Data Input'!$A$3:$AX$39,2,FALSE) -> Stella Genesta | C11: =+VLOOKUP(+$A11,'Data Input'!$A$3:$AX$39,3,FALSE) -> M Burwood | D11: =+VLOOKUP(+$A11,'Data Input'!$A$3:$AX$39,4,FALSE) -> 30 | E11: =+VLOOKUP(+$A11,'Data Input'!$A$3:$AX$39,5,FALSE) -> -19 | F11: =+VLOOKUP(+$A11,'Data Input'!$A$3:$AX$39,6,FALSE) -> 0 | G11: =+VLOOKUP(+$A11,'Data Input'!$A$3:$AX$39,7,FALSE) -> A | H11: =+VLOOKUP($A11,'Data Input'!$A$3:$AX$39,33,FALSE) -> 5 | I11: =+VLOOKUP($A11,'Data Input'!$A$3:$AX$39,34,FALSE) -> 30 | J11: =+VLOOKUP($A11,'Data Input'!$A$3:$AX$39,35,FALSE) -> 15.84 | L11: =+VLOOKUP($A11,'Data Input'!$A$3:$AX$39,37,FALSE) -> 21
A12: 179 | B12: =+VLOOKUP(+$A12,'Data Input'!$A$3:$AX$39,2,FALSE) -> Waxwing | C12: =+VLOOKUP(+$A12,'Data Input'!$A$3:$AX$39,3,FALSE) -> R & S Clayton | D12: =+VLOOKUP(+$A12,'Data Input'!$A$3:$AX$39,4,FALSE) -> 27 | E12: =+VLOOKUP(+$A12,'Data Input'!$A$3:$AX$39,5,FALSE) -> -8 | F12: =+VLOOKUP(+$A12,'Data Input'!$A$3:$AX$39,6,FALSE) -> 0 | G12: =+VLOOKUP(+$A12,'Data Input'!$A$3:$AX$39,7,FALSE) -> B | H12: =+VLOOKUP($A12,'Data Input'!$A$3:$AX$39,33,FALSE) -> 5 | I12: =+VLOOKUP($A12,'Data Input'!$A$3:$AX$39,34,FALSE) -> 16 | J12: =+VLOOKUP($A12,'Data Input'!$A$3:$AX$39,35,FALSE) -> 15.92 | L12: =+VLOOKUP($A12,'Data Input'!$A$3:$AX$39,37,FALSE) -> 11
A13: 199 | B13: =+VLOOKUP(+$A13,'Data Input'!$A$3:$AX$39,2,FALSE) -> Morning Calm | C13: =+VLOOKUP(+$A13,'Data Input'!$A$3:$AX$39,3,FALSE) -> W Clark | D13: =+VLOOKUP(+$A13,'Data Input'!$A$3:$AX$39,4,FALSE) -> 26 | E13: =+VLOOKUP(+$A13,'Data Input'!$A$3:$AX$39,5,FALSE) -> -9 | F13: =+VLOOKUP(+$A13,'Data Input'!$A$3:$AX$39,6,FALSE) -> 0 | G13: =+VLOOKUP(+$A13,'Data Input'!$A$3:$AX$39,7,FALSE) -> B | H13: =+VLOOKUP($A13,'Data Input'!$A$3:$AX$39,33,FALSE) -> 5 | I13: =+VLOOKUP($A13,'Data Input'!$A$3:$AX$39,34,FALSE) -> 0 | J13: =+VLOOKUP($A13,'Data Input'!$A$3:$AX$39,35,FALSE) -> 53.49 | L13: =+VLOOKUP($A13,'Data Input'!$A$3:$AX$39,37,FALSE) -> 6
A14: 216 | B14: =+VLOOKUP(+$A14,'Data Input'!$A$3:$AX$39,2,FALSE) -> Tamara | C14: =+VLOOKUP(+$A14,'Data Input'!$A$3:$AX$39,3,FALSE) -> N Heath | D14: =+VLOOKUP(+$A14,'Data Input'!$A$3:$AX$39,4,FALSE) -> 24.8 | E14: =+VLOOKUP(+$A14,'Data Input'!$A$3:$AX$39,5,FALSE) -> -16 | F14: =+VLOOKUP(+$A14,'Data Input'!$A$3:$AX$39,6,FALSE) -> P | G14: =+VLOOKUP(+$A14,'Data Input'!$A$3:$AX$39,7,FALSE) -> C | H14: =+VLOOKUP($A14,'Data Input'!$A$3:$AX$39,33,FALSE) -> 5 | I14: =+VLOOKUP($A14,'Data Input'!$A$3:$AX$39,34,FALSE) -> 13 | J14: =+VLOOKUP($A14,'Data Input'!$A$3:$AX$39,35,FALSE) -> 30.96 | L14: =+VLOOKUP($A14,'Data Input'!$A$3:$AX$39,37,FALSE) -> P
A15: 217 | B15: =+VLOOKUP(+$A15,'Data Input'!$A$3:$AX$39,2,FALSE) -> Melinda | C15: =+VLOOKUP(+$A15,'Data Input'!$A$3:$AX$39,3,FALSE) -> P Howes | D15: =+VLOOKUP(+$A15,'Data Input'!$A$3:$AX$39,4,FALSE) -> 27.11 | E15: =+VLOOKUP(+$A15,'Data Input'!$A$3:$AX$39,5,FALSE) -> 1 | F15: =+VLOOKUP(+$A15,'Data Input'!$A$3:$AX$39,6,FALSE) -> 0 | G15: =+VLOOKUP(+$A15,'Data Input'!$A$3:$AX$39,7,FALSE) -> B | H15: =+VLOOKUP($A15,'Data Input'!$A$3:$AX$39,33,FALSE) -> 4 | I15: =+VLOOKUP($A15,'Data Input'!$A$3:$AX$39,34,FALSE) -> 53 | J15: =+VLOOKUP($A15,'Data Input'!$A$3:$AX$39,35,FALSE) -> 32.38 | L15: =+VLOOKUP($A15,'Data Input'!$A$3:$AX$39,37,FALSE) -> 4
A16: 218 | B16: =+VLOOKUP(+$A16,'Data Input'!$A$3:$AX$39,2,FALSE) -> Mystery | C16: =+VLOOKUP(+$A16,'Data Input'!$A$3:$AX$39,3,FALSE) -> M Ford | D16: =+VLOOKUP(+$A16,'Data Input'!$A$3:$AX$39,4,FALSE) -> 26 | E16: =+VLOOKUP(+$A16,'Data Input'!$A$3:$AX$39,5,FALSE) -> -7 | F16: =+VLOOKUP(+$A16,'Data Input'!$A$3:$AX$39,6,FALSE) -> RTD | G16: =+VLOOKUP(+$A16,'Data Input'!$A$3:$AX$39,7,FALSE) -> B | H16: =+VLOOKUP($A16,'Data Input'!$A$3:$AX$39,33,FALSE) -> 12 | I16: =+VLOOKUP($A16,'Data Input'!$A$3:$AX$39,34,FALSE) -> 47 | J16: =+VLOOKUP($A16,'Data Input'!$A$3:$AX$39,35,FALSE) -> 15 | L16: =+VLOOKUP($A16,'Data Input'!$A$3:$AX$39,37,FALSE) -> RTD
A17: 224 | B17: =+VLOOKUP(+$A17,'Data Input'!$A$3:$AX$39,2,FALSE) -> Anna | C17: =+VLOOKUP(+$A17,'Data Input'!$A$3:$AX$39,3,FALSE) -> R Branscombe | D17: =+VLOOKUP(+$A17,'Data Input'!$A$3:$AX$39,4,FALSE) -> 25 | E17: =+VLOOKUP(+$A17,'Data Input'!$A$3:$AX$39,5,FALSE) -> -10 | F17: =+VLOOKUP(+$A17,'Data Input'!$A$3:$AX$39,6,FALSE) -> 0 | G17: =+VLOOKUP(+$A17,'Data Input'!$A$3:$AX$39,7,FALSE) -> B | H17: =+VLOOKUP($A17,'Data Input'!$A$3:$AX$39,33,FALSE) -> 5 | I17: =+VLOOKUP($A17,'Data Input'!$A$3:$AX$39,34,FALSE) -> 27 | J17: =+VLOOKUP($A17,'Data Input'!$A$3:$AX$39,35,FALSE) -> 40.5 | L17: =+VLOOKUP($A17,'Data Input'!$A$3:$AX$39,37,FALSE) -> 19
A18: 240 | B18: =+VLOOKUP(+$A18,'Data Input'!$A$3:$AX$39,2,FALSE) -> Avocet | C18: =+VLOOKUP(+$A18,'Data Input'!$A$3:$AX$39,3,FALSE) -> R Branford | D18: =+VLOOKUP(+$A18,'Data Input'!$A$3:$AX$39,4,FALSE) -> 28 | E18: =+VLOOKUP(+$A18,'Data Input'!$A$3:$AX$39,5,FALSE) -> -16 | F18: =+VLOOKUP(+$A18,'Data Input'!$A$3:$AX$39,6,FALSE) -> 0 | G18: =+VLOOKUP(+$A18,'Data Input'!$A$3:$AX$39,7,FALSE) -> B | H18: =+VLOOKUP($A18,'Data Input'!$A$3:$AX$39,33,FALSE) -> 5 | I18: =+VLOOKUP($A18,'Data Input'!$A$3:$AX$39,34,FALSE) -> 15 | J18: =+VLOOKUP($A18,'Data Input'!$A$3:$AX$39,35,FALSE) -> 42 | L18: =+VLOOKUP($A18,'Data Input'!$A$3:$AX$39,37,FALSE) -> 10
A19: 250 | B19: =+VLOOKUP(+$A19,'Data Input'!$A$3:$AX$39,2,FALSE) -> Storm | C19: =+VLOOKUP(+$A19,'Data Input'!$A$3:$AX$39,3,FALSE) -> M Thwaites | D19: =+VLOOKUP(+$A19,'Data Input'!$A$3:$AX$39,4,FALSE) -> 35 | E19: =+VLOOKUP(+$A19,'Data Input'!$A$3:$AX$39,5,FALSE) -> 16 | F19: =+VLOOKUP(+$A19,'Data Input'!$A$3:$AX$39,6,FALSE) -> 0 | G19: =+VLOOKUP(+$A19,'Data Input'!$A$3:$AX$39,7,FALSE) -> A | H19: =+VLOOKUP($A19,'Data Input'!$A$3:$AX$39,33,FALSE) -> 4 | I19: =+VLOOKUP($A19,'Data Input'!$A$3:$AX$39,34,FALSE) -> 54 | J19: =+VLOOKUP($A19,'Data Input'!$A$3:$AX$39,35,FALSE) -> 33.76 | L19: =+VLOOKUP($A19,'Data Input'!$A$3:$AX$39,37,FALSE) -> 5
A20: 262 | B20: =+VLOOKUP(+$A20,'Data Input'!$A$3:$AX$39,2,FALSE) -> Jessie May | C20: =+VLOOKUP(+$A20,'Data Input'!$A$3:$AX$39,3,FALSE) -> C Dugdale | D20: =+VLOOKUP(+$A20,'Data Input'!$A$3:$AX$39,4,FALSE) -> 27.11 | E20: =+VLOOKUP(+$A20,'Data Input'!$A$3:$AX$39,5,FALSE) -> -5 | F20: =+VLOOKUP(+$A20,'Data Input'!$A$3:$AX$39,6,FALSE) -> 0 | G20: =+VLOOKUP(+$A20,'Data Input'!$A$3:$AX$39,7,FALSE) -> B | H20: =+VLOOKUP($A20,'Data Input'!$A$3:$AX$39,33,FALSE) -> 5 | I20: =+VLOOKUP($A20,'Data Input'!$A$3:$AX$39,34,FALSE) -> 18 | J20: =+VLOOKUP($A20,'Data Input'!$A$3:$AX$39,35,FALSE) -> 37.8 | L20: =+VLOOKUP($A20,'Data Input'!$A$3:$AX$39,37,FALSE) -> 13
A21: 274 | B21: =+VLOOKUP(+$A21,'Data Input'!$A$3:$AX$39,2,FALSE) -> Elfin | C21: =+VLOOKUP(+$A21,'Data Input'!$A$3:$AX$39,3,FALSE) -> A Bond | D21: =+VLOOKUP(+$A21,'Data Input'!$A$3:$AX$39,4,FALSE) -> 20 | E21: =+VLOOKUP(+$A21,'Data Input'!$A$3:$AX$39,5,FALSE) -> -27 | F21: =+VLOOKUP(+$A21,'Data Input'!$A$3:$AX$39,6,FALSE) -> 0 | G21: =+VLOOKUP(+$A21,'Data Input'!$A$3:$AX$39,7,FALSE) -> C | H21: =+VLOOKUP($A21,'Data Input'!$A$3:$AX$39,33,FALSE) -> 6 | I21: =+VLOOKUP($A21,'Data Input'!$A$3:$AX$39,34,FALSE) -> 2 | J21: =+VLOOKUP($A21,'Data Input'!$A$3:$AX$39,35,FALSE) -> 44.95 | L21: =+VLOOKUP($A21,'Data Input'!$A$3:$AX$39,37,FALSE) -> 24
A22: 323 | B22: =+VLOOKUP(+$A22,'Data Input'!$A$3:$AX$39,2,FALSE) -> Starlight Lady | C22: =+VLOOKUP(+$A22,'Data Input'!$A$3:$AX$39,3,FALSE) -> N Matthews | D22: =+VLOOKUP(+$A22,'Data Input'!$A$3:$AX$39,4,FALSE) -> 30 | E22: =+VLOOKUP(+$A22,'Data Input'!$A$3:$AX$39,5,FALSE) -> 13 | F22: =+VLOOKUP(+$A22,'Data Input'!$A$3:$AX$39,6,FALSE) -> 0 | G22: =+VLOOKUP(+$A22,'Data Input'!$A$3:$AX$39,7,FALSE) -> A | H22: =+VLOOKUP($A22,'Data Input'!$A$3:$AX$39,33,FALSE) -> 5 | I22: =+VLOOKUP($A22,'Data Input'!$A$3:$AX$39,34,FALSE) -> 21 | J22: =+VLOOKUP($A22,'Data Input'!$A$3:$AX$39,35,FALSE) -> 27.97 | L22: =+VLOOKUP($A22,'Data Input'!$A$3:$AX$39,37,FALSE) -> 14
A23: 368 | B23: =+VLOOKUP(+$A23,'Data Input'!$A$3:$AX$39,2,FALSE) -> Wandering Rose | C23: =+VLOOKUP(+$A23,'Data Input'!$A$3:$AX$39,3,FALSE) -> D Radley | D23: =+VLOOKUP(+$A23,'Data Input'!$A$3:$AX$39,4,FALSE) -> 31.6 | E23: =+VLOOKUP(+$A23,'Data Input'!$A$3:$AX$39,5,FALSE) -> -2 | F23: =+VLOOKUP(+$A23,'Data Input'!$A$3:$AX$39,6,FALSE) -> 0 | G23: =+VLOOKUP(+$A23,'Data Input'!$A$3:$AX$39,7,FALSE) -> A | H23: =+VLOOKUP($A23,'Data Input'!$A$3:$AX$39,33,FALSE) -> 5 | I23: =+VLOOKUP($A23,'Data Input'!$A$3:$AX$39,34,FALSE) -> 26 | J23: =+VLOOKUP($A23,'Data Input'!$A$3:$AX$39,35,FALSE) -> 12.56 | L23: =+VLOOKUP($A23,'Data Input'!$A$3:$AX$39,37,FALSE) -> 17
A24: 369 | B24: =+VLOOKUP(+$A24,'Data Input'!$A$3:$AX$39,2,FALSE) -> Moonshadow | C24: =+VLOOKUP(+$A24,'Data Input'!$A$3:$AX$39,3,FALSE) -> N Hovey | D24: =+VLOOKUP(+$A24,'Data Input'!$A$3:$AX$39,4,FALSE) -> 31.6 | E24: =+VLOOKUP(+$A24,'Data Input'!$A$3:$AX$39,5,FALSE) -> 5 | F24: =+VLOOKUP(+$A24,'Data Input'!$A$3:$AX$39,6,FALSE) ->  | G24: =+VLOOKUP(+$A24,'Data Input'!$A$3:$AX$39,7,FALSE) -> A | H24: =+VLOOKUP($A24,'Data Input'!$A$3:$AX$39,33,FALSE) -> 5 | I24: =+VLOOKUP($A24,'Data Input'!$A$3:$AX$39,34,FALSE) -> 0 | J24: =+VLOOKUP($A24,'Data Input'!$A$3:$AX$39,35,FALSE) -> 55.8 | L24: =+VLOOKUP($A24,'Data Input'!$A$3:$AX$39,37,FALSE) -> 7
A25: 370 | B25: =+VLOOKUP(+$A25,'Data Input'!$A$3:$AX$39,2,FALSE) -> Glory | C25: =+VLOOKUP(+$A25,'Data Input'!$A$3:$AX$39,3,FALSE) -> C Brown | D25: =+VLOOKUP(+$A25,'Data Input'!$A$3:$AX$39,4,FALSE) -> 35 | E25: =+VLOOKUP(+$A25,'Data Input'!$A$3:$AX$39,5,FALSE) -> -6 | F25: =+VLOOKUP(+$A25,'Data Input'!$A$3:$AX$39,6,FALSE) ->  | G25: =+VLOOKUP(+$A25,'Data Input'!$A$3:$AX$39,7,FALSE) -> A | H25: =+VLOOKUP($A25,'Data Input'!$A$3:$AX$39,33,FALSE) -> 5 | I25: =+VLOOKUP($A25,'Data Input'!$A$3:$AX$39,34,FALSE) -> 25 | J25: =+VLOOKUP($A25,'Data Input'!$A$3:$AX$39,35,FALSE) -> 1.24 | L25: =+VLOOKUP($A25,'Data Input'!$A$3:$AX$39,37,FALSE) -> 16
A26: 375 | B26: =+VLOOKUP(+$A26,'Data Input'!$A$3:$AX$39,2,FALSE) -> Amaryllis | C26: =+VLOOKUP(+$A26,'Data Input'!$A$3:$AX$39,3,FALSE) -> C Tuckett | D26: =+VLOOKUP(+$A26,'Data Input'!$A$3:$AX$39,4,FALSE) -> 21.4 | E26: =+VLOOKUP(+$A26,'Data Input'!$A$3:$AX$39,5,FALSE) -> -10 | F26: =+VLOOKUP(+$A26,'Data Input'!$A$3:$AX$39,6,FALSE) -> 0 | G26: =+VLOOKUP(+$A26,'Data Input'!$A$3:$AX$39,7,FALSE) -> C | H26: =+VLOOKUP($A26,'Data Input'!$A$3:$AX$39,33,FALSE) -> 5 | I26: =+VLOOKUP($A26,'Data Input'!$A$3:$AX$39,34,FALSE) -> 4 | J26: =+VLOOKUP($A26,'Data Input'!$A$3:$AX$39,35,FALSE) -> 38.1 | L26: =+VLOOKUP($A26,'Data Input'!$A$3:$AX$39,37,FALSE) -> 8
A27: 400 | B27: =+VLOOKUP(+$A27,'Data Input'!$A$3:$AX$39,2,FALSE) -> Swallow | C27: =+VLOOKUP(+$A27,'Data Input'!$A$3:$AX$39,3,FALSE) -> K Halifax | D27: =+VLOOKUP(+$A27,'Data Input'!$A$3:$AX$39,4,FALSE) -> 26 | E27: =+VLOOKUP(+$A27,'Data Input'!$A$3:$AX$39,5,FALSE) -> -7 | F27: =+VLOOKUP(+$A27,'Data Input'!$A$3:$AX$39,6,FALSE) ->  | G27: =+VLOOKUP(+$A27,'Data Input'!$A$3:$AX$39,7,FALSE) -> B | H27: =+VLOOKUP($A27,'Data Input'!$A$3:$AX$39,33,FALSE) -> 5 | I27: =+VLOOKUP($A27,'Data Input'!$A$3:$AX$39,34,FALSE) -> 34 | J27: =+VLOOKUP($A27,'Data Input'!$A$3:$AX$39,35,FALSE) -> 41.49 | L27: =+VLOOKUP($A27,'Data Input'!$A$3:$AX$39,37,FALSE) -> 23
A28: 403 | B28: =+VLOOKUP(+$A28,'Data Input'!$A$3:$AX$39,2,FALSE) -> May | C28: =+VLOOKUP(+$A28,'Data Input'!$A$3:$AX$39,3,FALSE) -> K Rhead | D28: =+VLOOKUP(+$A28,'Data Input'!$A$3:$AX$39,4,FALSE) -> 30 | E28: =+VLOOKUP(+$A28,'Data Input'!$A$3:$AX$39,5,FALSE) -> -10 | F28: =+VLOOKUP(+$A28,'Data Input'!$A$3:$AX$39,6,FALSE) -> DNF | G28: =+VLOOKUP(+$A28,'Data Input'!$A$3:$AX$39,7,FALSE) -> A | H28: =+VLOOKUP($A28,'Data Input'!$A$3:$AX$39,33,FALSE) -> 11 | I28: =+VLOOKUP($A28,'Data Input'!$A$3:$AX$39,34,FALSE) -> 28 | J28: =+VLOOKUP($A28,'Data Input'!$A$3:$AX$39,35,FALSE) -> 30 | L28: =+VLOOKUP($A28,'Data Input'!$A$3:$AX$39,37,FALSE) -> DNF
A29: 416 | B29: =+VLOOKUP(+$A29,'Data Input'!$A$3:$AX$39,2,FALSE) -> Alice Rose | C29: =+VLOOKUP(+$A29,'Data Input'!$A$3:$AX$39,3,FALSE) -> T Riches | D29: =+VLOOKUP(+$A29,'Data Input'!$A$3:$AX$39,4,FALSE) -> 28.6 | E29: =+VLOOKUP(+$A29,'Data Input'!$A$3:$AX$39,5,FALSE) -> -7 | F29: =+VLOOKUP(+$A29,'Data Input'!$A$3:$AX$39,6,FALSE) -> 0 | G29: =+VLOOKUP(+$A29,'Data Input'!$A$3:$AX$39,7,FALSE) -> A | H29: =+VLOOKUP($A29,'Data Input'!$A$3:$AX$39,33,FALSE) -> 5 | I29: =+VLOOKUP($A29,'Data Input'!$A$3:$AX$39,34,FALSE) -> 17 | J29: =+VLOOKUP($A29,'Data Input'!$A$3:$AX$39,35,FALSE) -> 28.26 | L29: =+VLOOKUP($A29,'Data Input'!$A$3:$AX$39,37,FALSE) -> 12
A30: 417 | B30: =+VLOOKUP(+$A30,'Data Input'!$A$3:$AX$39,2,FALSE) -> Stellar | C30: =+VLOOKUP(+$A30,'Data Input'!$A$3:$AX$39,3,FALSE) -> T Frary | D30: =+VLOOKUP(+$A30,'Data Input'!$A$3:$AX$39,4,FALSE) -> 31.4 | E30: =+VLOOKUP(+$A30,'Data Input'!$A$3:$AX$39,5,FALSE) -> 17 | F30: =+VLOOKUP(+$A30,'Data Input'!$A$3:$AX$39,6,FALSE) -> 0 | G30: =+VLOOKUP(+$A30,'Data Input'!$A$3:$AX$39,7,FALSE) -> A | H30: =+VLOOKUP($A30,'Data Input'!$A$3:$AX$39,33,FALSE) -> 4 | I30: =+VLOOKUP($A30,'Data Input'!$A$3:$AX$39,34,FALSE) -> 33 | J30: =+VLOOKUP($A30,'Data Input'!$A$3:$AX$39,35,FALSE) -> 16.38 | L30: =+VLOOKUP($A30,'Data Input'!$A$3:$AX$39,37,FALSE) -> 1 | N30: FIRST
A31: 418 | B31: =+VLOOKUP(+$A31,'Data Input'!$A$3:$AX$39,2,FALSE) -> Tinkerbell | C31: =+VLOOKUP(+$A31,'Data Input'!$A$3:$AX$39,3,FALSE) -> A Lincoln | D31: =+VLOOKUP(+$A31,'Data Input'!$A$3:$AX$39,4,FALSE) -> 25.2 | E31: =+VLOOKUP(+$A31,'Data Input'!$A$3:$AX$39,5,FALSE) -> -8 | F31: =+VLOOKUP(+$A31,'Data Input'!$A$3:$AX$39,6,FALSE) ->  | G31: =+VLOOKUP(+$A31,'Data Input'!$A$3:$AX$39,7,FALSE) -> B | H31: =+VLOOKUP($A31,'Data Input'!$A$3:$AX$39,33,FALSE) -> 4 | I31: =+VLOOKUP($A31,'Data Input'!$A$3:$AX$39,34,FALSE) -> 50 | J31: =+VLOOKUP($A31,'Data Input'!$A$3:$AX$39,35,FALSE) -> 59.76 | L31: =+VLOOKUP($A31,'Data Input'!$A$3:$AX$39,37,FALSE) -> 3 | N31: THIRD
A32: 420 | B32: =+VLOOKUP(+$A32,'Data Input'!$A$3:$AX$39,2,FALSE) -> Lyra | C32: =+VLOOKUP(+$A32,'Data Input'!$A$3:$AX$39,3,FALSE) -> P Carrington | D32: =+VLOOKUP(+$A32,'Data Input'!$A$3:$AX$39,4,FALSE) -> 30 | E32: =+VLOOKUP(+$A32,'Data Input'!$A$3:$AX$39,5,FALSE) -> 16 | F32: =+VLOOKUP(+$A32,'Data Input'!$A$3:$AX$39,6,FALSE) -> DNS | G32: =+VLOOKUP(+$A32,'Data Input'!$A$3:$AX$39,7,FALSE) -> A | H32: =+VLOOKUP($A32,'Data Input'!$A$3:$AX$39,33,FALSE) -> 0 | I32: =+VLOOKUP($A32,'Data Input'!$A$3:$AX$39,34,FALSE) -> 0 | J32: =+VLOOKUP($A32,'Data Input'!$A$3:$AX$39,35,FALSE) -> 0 | L32: =+VLOOKUP($A32,'Data Input'!$A$3:$AX$39,37,FALSE) -> DNS
A33: 429 | B33: =+VLOOKUP(+$A33,'Data Input'!$A$3:$AX$39,2,FALSE) -> Pickle | C33: =+VLOOKUP(+$A33,'Data Input'!$A$3:$AX$39,3,FALSE) -> P Montague | D33: =+VLOOKUP(+$A33,'Data Input'!$A$3:$AX$39,4,FALSE) -> 22.6 | E33: =+VLOOKUP(+$A33,'Data Input'!$A$3:$AX$39,5,FALSE) -> -16 | F33: =+VLOOKUP(+$A33,'Data Input'!$A$3:$AX$39,6,FALSE) -> 0 | G33: =+VLOOKUP(+$A33,'Data Input'!$A$3:$AX$39,7,FALSE) -> C | H33: =+VLOOKUP($A33,'Data Input'!$A$3:$AX$39,33,FALSE) -> 4 | I33: =+VLOOKUP($A33,'Data Input'!$A$3:$AX$39,34,FALSE) -> 50 | J33: =+VLOOKUP($A33,'Data Input'!$A$3:$AX$39,35,FALSE) -> 34.2 | L33: =+VLOOKUP($A33,'Data Input'!$A$3:$AX$39,37,FALSE) -> 2 | N33: SECOND
A40: =COUNT(A3:A39) -> 31

Sheet Moonraker
I1: Elapsed | N1: MOONRAKER POSITION
A2: No | B2: Yacht | C2: Skipper | D2: Length | E2: H/C | F2: P | G2: Class | H2: H | I2: M | J2: S | L2: Pos
A3: 10 | B3: =+VLOOKUP(+$A3,'Data Input'!$A$3:$AX$39,2,FALSE) -> Flight | C3: =+VLOOKUP(+$A3,'Data Input'!$A$3:$AX$39,3,FALSE) -> J Farrow | D3: =+VLOOKUP(+$A3,'Data Input'!$A$3:$AX$39,4,FALSE) -> 29.11 | E3: =+VLOOKUP(+$A3,'Data Input'!$A$3:$AX$39,5,FALSE) -> -9 | F3: =+VLOOKUP(+$A3,'Data Input'!$A$3:$AX$39,6,FALSE) -> 0 | G3: =+VLOOKUP(+$A3,'Data Input'!$A$3:$AX$39,7,FALSE) -> A | H3: =+VLOOKUP($A3,'Data Input'!$A$3:$AX$39,27,FALSE) -> 6 | I3: =+VLOOKUP($A3,'Data Input'!$A$3:$AX$39,28,FALSE) -> 0 | J3: =+VLOOKUP($A3,'Data Input'!$A$3:$AX$39,29,FALSE) -> 54 | L3: =+VLOOKUP($A3,'Data Input'!$A$3:$AX$39,31,FALSE) -> 18
A4: 22 | B4: =+VLOOKUP(+$A4,'Data Input'!$A$3:$AX$39,2,FALSE) -> Moonraker | C4: =+VLOOKUP(+$A4,'Data Input'!$A$3:$AX$39,3,FALSE) -> P Jeckells | D4: =+VLOOKUP(+$A4,'Data Input'!$A$3:$AX$39,4,FALSE) -> 29.6 | E4: =+VLOOKUP(+$A4,'Data Input'!$A$3:$AX$39,5,FALSE) -> 2 | F4: =+VLOOKUP(+$A4,'Data Input'!$A$3:$AX$39,6,FALSE) -> 0 | G4: =+VLOOKUP(+$A4,'Data Input'!$A$3:$AX$39,7,FALSE) -> A | H4: =+VLOOKUP($A4,'Data Input'!$A$3:$AX$39,27,FALSE) -> 5 | I4: =+VLOOKUP($A4,'Data Input'!$A$3:$AX$39,28,FALSE) -> 7 | J4: =+VLOOKUP($A4,'Data Input'!$A$3:$AX$39,29,FALSE) -> 35 | L4: =+VLOOKUP($A4,'Data Input'!$A$3:$AX$39,31,FALSE) -> 6
A5: 24 | B5: =+VLOOKUP(+$A5,'Data Input'!$A$3:$AX$39,2,FALSE) -> Pippa | C5: =+VLOOKUP(+$A5,'Data Input'!$A$3:$AX$39,3,FALSE) -> G Angel | D5: =+VLOOKUP(+$A5,'Data Input'!$A$3:$AX$39,4,FALSE) -> 27.1 | E5: =+VLOOKUP(+$A5,'Data Input'!$A$3:$AX$39,5,FALSE) -> -7 | F5: =+VLOOKUP(+$A5,'Data Input'!$A$3:$AX$39,6,FALSE) -> 0 | G5: =+VLOOKUP(+$A5,'Data Input'!$A$3:$AX$39,7,FALSE) -> B | H5: =+VLOOKUP($A5,'Data Input'!$A$3:$AX$39,27,FALSE) -> 5 | I5: =+VLOOKUP($A5,'Data Input'!$A$3:$AX$39,28,FALSE) -> 51 | J5: =+VLOOKUP($A5,'Data Input'!$A$3:$AX$39,29,FALSE) -> 40 | L5: =+VLOOKUP($A5,'Data Input'!$A$3:$AX$39,31,FALSE) -> 16
A6: 25 | B6: =+VLOOKUP(+$A6,'Data Input'!$A$3:$AX$39,2,FALSE) -> Melody | C6: =+VLOOKUP(+$A6,'Data Input'!$A$3:$AX$39,3,FALSE) -> M Wells | D6: =+VLOOKUP(+$A6,'Data Input'!$A$3:$AX$39,4,FALSE) -> 26 | E6: =+VLOOKUP(+$A6,'Data Input'!$A$3:$AX$39,5,FALSE) -> -11 | F6: =+VLOOKUP(+$A6,'Data Input'!$A$3:$AX$39,6,FALSE) -> 0 | G6: =+VLOOKUP(+$A6,'Data Input'!$A$3:$AX$39,7,FALSE) -> B | H6: =+VLOOKUP($A6,'Data Input'!$A$3:$AX$39,27,FALSE) -> 6 | I6: =+VLOOKUP($A6,'Data Input'!$A$3:$AX$39,28,FALSE) -> 11 | J6: =+VLOOKUP($A6,'Data Input'!$A$3:$AX$39,29,FALSE) -> 10 | L6: =+VLOOKUP($A6,'Data Input'!$A$3:$AX$39,31,FALSE) -> 20
A7: 52 | B7: =+VLOOKUP(+$A7,'Data Input'!$A$3:$AX$39,2,FALSE) -> Maidie | C7: =+VLOOKUP(+$A7,'Data Input'!$A$3:$AX$39,3,FALSE) -> M Barnes | D7: =+VLOOKUP(+$A7,'Data Input'!$A$3:$AX$39,4,FALSE) -> 43 | E7: =+VLOOKUP(+$A7,'Data Input'!$A$3:$AX$39,5,FALSE) -> 10 | F7: =+VLOOKUP(+$A7,'Data Input'!$A$3:$AX$39,6,FALSE) -> DNF | G7: =+VLOOKUP(+$A7,'Data Input'!$A$3:$AX$39,7,FALSE) -> A | H7: =+VLOOKUP($A7,'Data Input'!$A$3:$AX$39,27,FALSE) -> 14 | I7: =+VLOOKUP($A7,'Data Input'!$A$3:$AX$39,28,FALSE) -> 30 | J7: =+VLOOKUP($A7,'Data Input'!$A$3:$AX$39,29,FALSE) -> 0 | L7: =+VLOOKUP($A7,'Data Input'!$A$3:$AX$39,31,FALSE) -> DNF
A8: 79 | B8: =+VLOOKUP(+$A8,'Data Input'!$A$3:$AX$39,2,FALSE) -> Daisy | C8: =+VLOOKUP(+$A8,'Data Input'!$A$3:$AX$39,3,FALSE) -> T Ford | D8: =+VLOOKUP(+$A8,'Data Input'!$A$3:$AX$39,4,FALSE) -> 22 | E8: =+VLOOKUP(+$A8,'Data Input'!$A$3:$AX$39,5,FALSE) -> -25 | F8: =+VLOOKUP(+$A8,'Data Input'!$A$3:$AX$39,6,FALSE) -> 0 | G8: =+VLOOKUP(+$A8,'Data Input'!$A$3:$AX$39,7,FALSE) -> C | H8: =+VLOOKUP($A8,'Data Input'!$A$3:$AX$39,27,FALSE) -> 8 | I8: =+VLOOKUP($A8,'Data Input'!$A$3:$AX$39,28,FALSE) -> 10 | J8: =+VLOOKUP($A8,'Data Input'!$A$3:$AX$39,29,FALSE) -> 26 | L8: =+VLOOKUP($A8,'Data Input'!$A$3:$AX$39,31,FALSE) -> 24
A9: 87 | B9: =+VLOOKUP(+$A9,'Data Input'!$A$3:$AX$39,2,FALSE) -> Modwena | C9: =+VLOOKUP(+$A9,'Data Input'!$A$3:$AX$39,3,FALSE) -> M Cassidy | D9: =+VLOOKUP(+$A9,'Data Input'!$A$3:$AX$39,4,FALSE) -> 24.11 | E9: =+VLOOKUP(+$A9,'Data Input'!$A$3:$AX$39,5,FALSE) -> -19 | F9: =+VLOOKUP(+$A9,'Data Input'!$A$3:$AX$39,6,FALSE) -> 0 | G9: =+VLOOKUP(+$A9,'Data Input'!$A$3:$AX$39,7,FALSE) -> C | H9: =+VLOOKUP($A9,'Data Input'!$A$3:$AX$39,27,FALSE) -> 6 | I9: =+VLOOKUP($A9,'Data Input'!$A$3:$AX$39,28,FALSE) -> 38 | J9: =+VLOOKUP($A9,'Data Input'!$A$3:$AX$39,29,FALSE) -> 12 | L9: =+VLOOKUP($A9,'Data Input'!$A$3:$AX$39,31,FALSE) -> 22
A10: 141 | B10: =+VLOOKUP(+$A10,'Data Input'!$A$3:$AX$39,2,FALSE) -> Nirvana | C10: =+VLOOKUP(+$A10,'Data Input'!$A$3:$AX$39,3,FALSE) -> M Claridge | D10: =+VLOOKUP(+$A10,'Data Input'!$A$3:$AX$39,4,FALSE) -> 20 | E10: =+VLOOKUP(+$A10,'Data Input'!$A$3:$AX$39,5,FALSE) -> -23 | F10: =+VLOOKUP(+$A10,'Data Input'!$A$3:$AX$39,6,FALSE) -> DNS | G10: =+VLOOKUP(+$A10,'Data Input'!$A$3:$AX$39,7,FALSE) -> C | H10: =+VLOOKUP($A10,'Data Input'!$A$3:$AX$39,27,FALSE) -> 0 | I10: =+VLOOKUP($A10,'Data Input'!$A$3:$AX$39,28,FALSE) -> 0 | J10: =+VLOOKUP($A10,'Data Input'!$A$3:$AX$39,29,FALSE) -> 0 | L10: =+VLOOKUP($A10,'Data Input'!$A$3:$AX$39,31,FALSE) -> DNS
A11: 149 | B11: =+VLOOKUP(+$A11,'Data Input'!$A$3:$AX$39,2,FALSE) -> Stella Genesta | C11: =+VLOOKUP(+$A11,'Data Input'!$A$3:$AX$39,3,FALSE) -> M Burwood | D11: =+VLOOKUP(+$A11,'Data Input'!$A$3:$AX$39,4,FALSE) -> 30 | E11: =+VLOOKUP(+$A11,'Data Input'!$A$3:$AX$39,5,FALSE) -> -19 | F11: =+VLOOKUP(+$A11,'Data Input'!$A$3:$AX$39,6,FALSE) -> 0 | G11: =+VLOOKUP(+$A11,'Data Input'!$A$3:$AX$39,7,FALSE) -> A | H11: =+VLOOKUP($A11,'Data Input'!$A$3:$AX$39,27,FALSE) -> 6 | I11: =+VLOOKUP($A11,'Data Input'!$A$3:$AX$39,28,FALSE) -> 47 | J11: =+VLOOKUP($A11,'Data Input'!$A$3:$AX$39,29,FALSE) -> 44 | L11: =+VLOOKUP($A11,'Data Input'!$A$3:$AX$39,31,FALSE) -> 23
A12: 179 | B12: =+VLOOKUP(+$A12,'Data Input'!$A$3:$AX$39,2,FALSE) -> Waxwing | C12: =+VLOOKUP(+$A12,'Data Input'!$A$3:$AX$39,3,FALSE) -> R & S Clayton | D12: =+VLOOKUP(+$A12,'Data Input'!$A$3:$AX$39,4,FALSE) -> 27 | E12: =+VLOOKUP(+$A12,'Data Input'!$A$3:$AX$39,5,FALSE) -> -8 | F12: =+VLOOKUP(+$A12,'Data Input'!$A$3:$AX$39,6,FALSE) -> 0 | G12: =+VLOOKUP(+$A12,'Data Input'!$A$3:$AX$39,7,FALSE) -> B | H12: =+VLOOKUP($A12,'Data Input'!$A$3:$AX$39,27,FALSE) -> 5 | I12: =+VLOOKUP($A12,'Data Input'!$A$3:$AX$39,28,FALSE) -> 43 | J12: =+VLOOKUP($A12,'Data Input'!$A$3:$AX$39,29,FALSE) -> 46 | L12: =+VLOOKUP($A12,'Data Input'!$A$3:$AX$39,31,FALSE) -> 13
A13: 199 | B13: =+VLOOKUP(+$A13,'Data Input'!$A$3:$AX$39,2,FALSE) -> Morning Calm | C13: =+VLOOKUP(+$A13,'Data Input'!$A$3:$AX$39,3,FALSE) -> W Clark | D13: =+VLOOKUP(+$A13,'Data Input'!$A$3:$AX$39,4,FALSE) -> 26 | E13: =+VLOOKUP(+$A13,'Data Input'!$A$3:$AX$39,5,FALSE) -> -9 | F13: =+VLOOKUP(+$A13,'Data Input'!$A$3:$AX$39,6,FALSE) -> 0 | G13: =+VLOOKUP(+$A13,'Data Input'!$A$3:$AX$39,7,FALSE) -> B | H13: =+VLOOKUP($A13,'Data Input'!$A$3:$AX$39,27,FALSE) -> 5 | I13: =+VLOOKUP($A13,'Data Input'!$A$3:$AX$39,28,FALSE) -> 30 | J13: =+VLOOKUP($A13,'Data Input'!$A$3:$AX$39,29,FALSE) -> 39 | L13: =+VLOOKUP($A13,'Data Input'!$A$3:$AX$39,31,FALSE) -> 8
A14: 216 | B14: =+VLOOKUP(+$A14,'Data Input'!$A$3:$AX$39,2,FALSE) -> Tamara | C14: =+VLOOKUP(+$A14,'Data Input'!$A$3:$AX$39,3,FALSE) -> N Heath | D14: =+VLOOKUP(+$A14,'Data Input'!$A$3:$AX$39,4,FALSE) -> 24.8 | E14: =+VLOOKUP(+$A14,'Data Input'!$A$3:$AX$39,5,FALSE) -> -16 | F14: =+VLOOKUP(+$A14,'Data Input'!$A$3:$AX$39,6,FALSE) -> P | G14: =+VLOOKUP(+$A14,'Data Input'!$A$3:$AX$39,7,FALSE) -> C | H14: =+VLOOKUP($A14,'Data Input'!$A$3:$AX$39,27,FALSE) -> 6 | I14: =+VLOOKUP($A14,'Data Input'!$A$3:$AX$39,28,FALSE) -> 13 | J14: =+VLOOKUP($A14,'Data Input'!$A$3:$AX$39,29,FALSE) -> 14 | L14: =+VLOOKUP($A14,'Data Input'!$A$3:$AX$39,31,FALSE) -> P
A15: 217 | B15: =+VLOOKUP(+$A15,'Data Input'!$A$3:$AX$39,2,FALSE) -> Melinda | C15: =+VLOOKUP(+$A15,'Data Input'!$A$3:$AX$39,3,FALSE) -> P Howes | D15: =+VLOOKUP(+$A15,'Data Input'!$A$3:$AX$39,4,FALSE) -> 27.11 | E15: =+VLOOKUP(+$A15,'Data Input'!$A$3:$AX$39,5,FALSE) -> 1 | F15: =+VLOOKUP(+$A15,'Data Input'!$A$3:$AX$39,6,FALSE) -> 0 | G15: =+VLOOKUP(+$A15,'Data Input'!$A$3:$AX$39,7,FALSE) -> B | H15: =+VLOOKUP($A15,'Data Input'!$A$3:$AX$39,27,FALSE) -> 4 | I15: =+VLOOKUP($A15,'Data Input'!$A$3:$AX$39,28,FALSE) -> 50 | J15: =+VLOOKUP($A15,'Data Input'!$A$3:$AX$39,29,FALSE) -> 38 | L15: =+VLOOKUP($A15,'Data Input'!$A$3:$AX$39,31,FALSE) -> 5
A16: 218 | B16: =+VLOOKUP(+$A16,'Data Input'!$A$3:$AX$39,2,FALSE) -> Mystery | C16: =+VLOOKUP(+$A16,'Data Input'!$A$3:$AX$39,3,FALSE) -> M Ford | D16: =+VLOOKUP(+$A16,'Data Input'!$A$3:$AX$39,4,FALSE) -> 26 | E16: =+VLOOKUP(+$A16,'Data Input'!$A$3:$AX$39,5,FALSE) -> -7 | F16: =+VLOOKUP(+$A16,'Data Input'!$A$3:$AX$39,6,FALSE) -> RTD | G16: =+VLOOKUP(+$A16,'Data Input'!$A$3:$AX$39,7,FALSE) -> B | H16: =+VLOOKUP($A16,'Data Input'!$A$3:$AX$39,27,FALSE) -> 13 | I16: =+VLOOKUP($A16,'Data Input'!$A$3:$AX$39,28,FALSE) -> 45 | J16: =+VLOOKUP($A16,'Data Input'!$A$3:$AX$39,29,FALSE) -> 0 | L16: =+VLOOKUP($A16,'Data Input'!$A$3:$AX$39,31,FALSE) -> RTD
A17: 224 | B17: =+VLOOKUP(+$A17,'Data Input'!$A$3:$AX$39,2,FALSE) -> Anna | C17: =+VLOOKUP(+$A17,'Data Input'!$A$3:$AX$39,3,FALSE) -> R Branscombe | D17: =+VLOOKUP(+$A17,'Data Input'!$A$3:$AX$39,4,FALSE) -> 25 | E17: =+VLOOKUP(+$A17,'Data Input'!$A$3:$AX$39,5,FALSE) -> -10 | F17: =+VLOOKUP(+$A17,'Data Input'!$A$3:$AX$39,6,FALSE) -> 0 | G17: =+VLOOKUP(+$A17,'Data Input'!$A$3:$AX$39,7,FALSE) -> B | H17: =+VLOOKUP($A17,'Data Input'!$A$3:$AX$39,27,FALSE) -> 6 | I17: =+VLOOKUP($A17,'Data Input'!$A$3:$AX$39,28,FALSE) -> 4 | J17: =+VLOOKUP($A17,'Data Input'!$A$3:$AX$39,29,FALSE) -> 5 | L17: =+VLOOKUP($A17,'Data Input'!$A$3:$AX$39,31,FALSE) -> 19
A18: 240 | B18: =+VLOOKUP(+$A18,'Data Input'!$A$3:$AX$39,2,FALSE) -> Avocet | C18: =+VLOOKUP(+$A18,'Data Input'!$A$3:$AX$39,3,FALSE) -> R Branford | D18: =+VLOOKUP(+$A18,'Data Input'!$A$3:$AX$39,4,FALSE) -> 28 | E18: =+VLOOKUP(+$A18,'Data Input'!$A$3:$AX$39,5,FALSE) -> -16 | F18: =+VLOOKUP(+$A18,'Data Input'!$A$3:$AX$39,6,FALSE) -> 0 | G18: =+VLOOKUP(+$A18,'Data Input'!$A$3:$AX$39,7,FALSE) -> B | H18: =+VLOOKUP($A18,'Data Input'!$A$3:$AX$39,27,FALSE) -> 6 | I18: =+VLOOKUP($A18,'Data Input'!$A$3:$AX$39,28,FALSE) -> 15 | J18: =+VLOOKUP($A18,'Data Input'!$A$3:$AX$39,29,FALSE) -> 50 | L18: =+VLOOKUP($A18,'Data Input'!$A$3:$AX$39,31,FALSE) -> 21
A19: 250 | B19: =+VLOOKUP(+$A19,'Data Input'!$A$3:$AX$39,2,FALSE) -> Storm | C19: =+VLOOKUP(+$A19,'Data Input'!$A$3:$AX$39,3,FALSE) -> M Thwaites | D19: =+VLOOKUP(+$A19,'Data Input'!$A$3:$AX$39,4,FALSE) -> 35 | E19: =+VLOOKUP(+$A19,'Data Input'!$A$3:$AX$39,5,FALSE) -> 16 | F19: =+VLOOKUP(+$A19,'Data Input'!$A$3:$AX$39,6,FALSE) -> 0 | G19: =+VLOOKUP(+$A19,'Data Input'!$A$3:$AX$39,7,FALSE) -> A | H19: =+VLOOKUP($A19,'Data Input'!$A$3:$AX$39,27,FALSE) -> 4 | I19: =+VLOOKUP($A19,'Data Input'!$A$3:$AX$39,28,FALSE) -> 13 | J19: =+VLOOKUP($A19,'Data Input'!$A$3:$AX$39,29,FALSE) -> 56 | L19: =+VLOOKUP($A19,'Data Input'!$A$3:$AX$39,31,FALSE) -> 2 | N19: SECOND
A20: 262 | B20: =+VLOOKUP(+$A20,'Data Input'!$A$3:$AX$39,2,FALSE) -> Jessie May | C20: =+VLOOKUP(+$A20,'Data Input'!$A$3:$AX$39,3,FALSE) -> C Dugdale | D20: =+VLOOKUP(+$A20,'Data Input'!$A$3:$AX$39,4,FALSE) -> 27.11 | E20: =+VLOOKUP(+$A20,'Data Input'!$A$3:$AX$39,5,FALSE) -> -5 | F20: =+VLOOKUP(+$A20,'Data Input'!$A$3:$AX$39,6,FALSE) -> 0 | G20: =+VLOOKUP(+$A20,'Data Input'!$A$3:$AX$39,7,FALSE) -> B | H20: =+VLOOKUP($A20,'Data Input'!$A$3:$AX$39,27,FALSE) -> 5 | I20: =+VLOOKUP($A20,'Data Input'!$A$3:$AX$39,28,FALSE) -> 35 | J20: =+VLOOKUP($A20,'Data Input'!$A$3:$AX$39,29,FALSE) -> 24 | L20: =+VLOOKUP($A20,'Data Input'!$A$3:$AX$39,31,FALSE) -> 10
A21: 274 | B21: =+VLOOKUP(+$A21,'Data Input'!$A$3:$AX$39,2,FALSE) -> Elfin | C21: =+VLOOKUP(+$A21,'Data Input'!$A$3:$AX$39,3,FALSE) -> A Bond | D21: =+VLOOKUP(+$A21,'Data Input'!$A$3:$AX$39,4,FALSE) -> 20 | E21: =+VLOOKUP(+$A21,'Data Input'!$A$3:$AX$39,5,FALSE) -> -27 | F21: =+VLOOKUP(+$A21,'Data Input'!$A$3:$AX$39,6,FALSE) -> 0 | G21: =+VLOOKUP(+$A21,'Data Input'!$A$3:$AX$39,7,FALSE) -> C | H21: =+VLOOKUP($A21,'Data Input'!$A$3:$AX$39,27,FALSE) -> 8 | I21: =+VLOOKUP($A21,'Data Input'!$A$3:$AX$39,28,FALSE) -> 16 | J21: =+VLOOKUP($A21,'Data Input'!$A$3:$AX$39,29,FALSE) -> 55 | L21: =+VLOOKUP($A21,'Data Input'!$A$3:$AX$39,31,FALSE) -> 25
A22: 323 | B22: =+VLOOKUP(+$A22,'Data Input'!$A$3:$AX$39,2,FALSE) -> Starlight Lady | C22: =+VLOOKUP(+$A22,'Data Input'!$A$3:$AX$39,3,FALSE) -> N Matthews | D22: =+VLOOKUP(+$A22,'Data Input'!$A$3:$AX$39,4,FALSE) -> 30 | E22: =+VLOOKUP(+$A22,'Data Input'!$A$3:$AX$39,5,FALSE) -> 13 | F22: =+VLOOKUP(+$A22,'Data Input'!$A$3:$AX$39,6,FALSE) -> 0 | G22: =+VLOOKUP(+$A22,'Data Input'!$A$3:$AX$39,7,FALSE) -> A | H22: =+VLOOKUP($A22,'Data Input'!$A$3:$AX$39,27,FALSE) -> 4 | I22: =+VLOOKUP($A22,'Data Input'!$A$3:$AX$39,28,FALSE) -> 44 | J22: =+VLOOKUP($A22,'Data Input'!$A$3:$AX$39,29,FALSE) -> 29 | L22: =+VLOOKUP($A22,'Data Input'!$A$3:$AX$39,31,FALSE) -> 3 | N22: THIRD
A23: 368 | B23: =+VLOOKUP(+$A23,'Data Input'!$A$3:$AX$39,2,FALSE) -> Wandering Rose | C23: =+VLOOKUP(+$A23,'Data Input'!$A$3:$AX$39,3,FALSE) -> D Radley | D23: =+VLOOKUP(+$A23,'Data Input'!$A$3:$AX$39,4,FALSE) -> 31.6 | E23: =+VLOOKUP(+$A23,'Data Input'!$A$3:$AX$39,5,FALSE) -> -2 | F23: =+VLOOKUP(+$A23,'Data Input'!$A$3:$AX$39,6,FALSE) -> 0 | G23: =+VLOOKUP(+$A23,'Data Input'!$A$3:$AX$39,7,FALSE) -> A | H23: =+VLOOKUP($A23,'Data Input'!$A$3:$AX$39,27,FALSE) -> 5 | I23: =+VLOOKUP($A23,'Data Input'!$A$3:$AX$39,28,FALSE) -> 32 | J23: =+VLOOKUP($A23,'Data Input'!$A$3:$AX$39,29,FALSE) -> 52 | L23: =+VLOOKUP($A23,'Data Input'!$A$3:$AX$39,31,FALSE) -> 9
A24: 369 | B24: =+VLOOKUP(+$A24,'Data Input'!$A$3:$AX$39,2,FALSE) -> Moonshadow | C24: =+VLOOKUP(+$A24,'Data Input'!$A$3:$AX$39,3,FALSE) -> N Hovey | D24: =+VLOOKUP(+$A24,'Data Input'!$A$3:$AX$39,4,FALSE) -> 31.6 | E24: =+VLOOKUP(+$A24,'Data Input'!$A$3:$AX$39,5,FALSE) -> 5 | F24: =+VLOOKUP(+$A24,'Data Input'!$A$3:$AX$39,6,FALSE) ->  | G24: =+VLOOKUP(+$A24,'Data Input'!$A$3:$AX$39,7,FALSE) -> A | H24: =+VLOOKUP($A24,'Data Input'!$A$3:$AX$39,27,FALSE) -> 4 | I24: =+VLOOKUP($A24,'Data Input'!$A$3:$AX$39,28,FALSE) -> 46 | J24: =+VLOOKUP($A24,'Data Input'!$A$3:$AX$39,29,FALSE) -> 36 | L24: =+VLOOKUP($A24,'Data Input'!$A$3:$AX$39,31,FALSE) -> 4
A25: 370 | B25: =+VLOOKUP(+$A25,'Data Input'!$A$3:$AX$39,2,FALSE) -> Glory | C25: =+VLOOKUP(+$A25,'Data Input'!$A$3:$AX$39,3,FALSE) -> C Brown | D25: =+VLOOKUP(+$A25,'Data Input'!$A$3:$AX$39,4,FALSE) -> 35 | E25: =+VLOOKUP(+$A25,'Data Input'!$A$3:$AX$39,5,FALSE) -> -6 | F25: =+VLOOKUP(+$A25,'Data Input'!$A$3:$AX$39,6,FALSE) ->  | G25: =+VLOOKUP(+$A25,'Data Input'!$A$3:$AX$39,7,FALSE) -> A | H25: =+VLOOKUP($A25,'Data Input'!$A$3:$AX$39,27,FALSE) -> 5 | I25: =+VLOOKUP($A25,'Data Input'!$A$3:$AX$39,28,FALSE) -> 45 | J25: =+VLOOKUP($A25,'Data Input'!$A$3:$AX$39,29,FALSE) -> 46 | L25: =+VLOOKUP($A25,'Data Input'!$A$3:$AX$39,31,FALSE) -> 14
A26: 375 | B26: =+VLOOKUP(+$A26,'Data Input'!$A$3:$AX$39,2,FALSE) -> Amaryllis | C26: =+VLOOKUP(+$A26,'Data Input'!$A$3:$AX$39,3,FALSE) -> C Tuckett | D26: =+VLOOKUP(+$A26,'Data Input'!$A$3:$AX$39,4,FALSE) -> 21.4 | E26: =+VLOOKUP(+$A26,'Data Input'!$A$3:$AX$39,5,FALSE) -> -10 | F26: =+VLOOKUP(+$A26,'Data Input'!$A$3:$AX$39,6,FALSE) -> 0 | G26: =+VLOOKUP(+$A26,'Data Input'!$A$3:$AX$39,7,FALSE) -> C | H26: =+VLOOKUP($A26,'Data Input'!$A$3:$AX$39,27,FALSE) -> 5 | I26: =+VLOOKUP($A26,'Data Input'!$A$3:$AX$39,28,FALSE) -> 38 | J26: =+VLOOKUP($A26,'Data Input'!$A$3:$AX$39,29,FALSE) -> 29 | L26: =+VLOOKUP($A26,'Data Input'!$A$3:$AX$39,31,FALSE) -> 11
A27: 400 | B27: =+VLOOKUP(+$A27,'Data Input'!$A$3:$AX$39,2,FALSE) -> Swallow | C27: =+VLOOKUP(+$A27,'Data Input'!$A$3:$AX$39,3,FALSE) -> K Halifax | D27: =+VLOOKUP(+$A27,'Data Input'!$A$3:$AX$39,4,FALSE) -> 26 | E27: =+VLOOKUP(+$A27,'Data Input'!$A$3:$AX$39,5,FALSE) -> -7 | F27: =+VLOOKUP(+$A27,'Data Input'!$A$3:$AX$39,6,FALSE) ->  | G27: =+VLOOKUP(+$A27,'Data Input'!$A$3:$AX$39,7,FALSE) -> B | H27: =+VLOOKUP($A27,'Data Input'!$A$3:$AX$39,27,FALSE) -> 5 | I27: =+VLOOKUP($A27,'Data Input'!$A$3:$AX$39,28,FALSE) -> 59 | J27: =+VLOOKUP($A27,'Data Input'!$A$3:$AX$39,29,FALSE) -> 53 | L27: =+VLOOKUP($A27,'Data Input'!$A$3:$AX$39,31,FALSE) -> 17
A28: 403 | B28: =+VLOOKUP(+$A28,'Data Input'!$A$3:$AX$39,2,FALSE) -> May | C28: =+VLOOKUP(+$A28,'Data Input'!$A$3:$AX$39,3,FALSE) -> K Rhead | D28: =+VLOOKUP(+$A28,'Data Input'!$A$3:$AX$39,4,FALSE) -> 30 | E28: =+VLOOKUP(+$A28,'Data Input'!$A$3:$AX$39,5,FALSE) -> -10 | F28: =+VLOOKUP(+$A28,'Data Input'!$A$3:$AX$39,6,FALSE) -> DNF | G28: =+VLOOKUP(+$A28,'Data Input'!$A$3:$AX$39,7,FALSE) -> A | H28: =+VLOOKUP($A28,'Data Input'!$A$3:$AX$39,27,FALSE) -> 12 | I28: =+VLOOKUP($A28,'Data Input'!$A$3:$AX$39,28,FALSE) -> 45 | J28: =+VLOOKUP($A28,'Data Input'!$A$3:$AX$39,29,FALSE) -> 0 | L28: =+VLOOKUP($A28,'Data Input'!$A$3:$AX$39,31,FALSE) -> DNF
A29: 416 | B29: =+VLOOKUP(+$A29,'Data Input'!$A$3:$AX$39,2,FALSE) -> Alice Rose | C29: =+VLOOKUP(+$A29,'Data Input'!$A$3:$AX$39,3,FALSE) -> T Riches | D29: =+VLOOKUP(+$A29,'Data Input'!$A$3:$AX$39,4,FALSE) -> 28.6 | E29: =+VLOOKUP(+$A29,'Data Input'!$A$3:$AX$39,5,FALSE) -> -7 | F29: =+VLOOKUP(+$A29,'Data Input'!$A$3:$AX$39,6,FALSE) -> 0 | G29: =+VLOOKUP(+$A29,'Data Input'!$A$3:$AX$39,7,FALSE) -> A | H29: =+VLOOKUP($A29,'Data Input'!$A$3:$AX$39,27,FALSE) -> 5 | I29: =+VLOOKUP($A29,'Data Input'!$A$3:$AX$39,28,FALSE) -> 41 | J29: =+VLOOKUP($A29,'Data Input'!$A$3:$AX$39,29,FALSE) -> 22 | L29: =+VLOOKUP($A29,'Data Input'!$A$3:$AX$39,31,FALSE) -> 12
A30: 417 | B30: =+VLOOKUP(+$A30,'Data Input'!$A$3:$AX$39,2,FALSE) -> Stellar | C30: =+VLOOKUP(+$A30,'Data Input'!$A$3:$AX$39,3,FALSE) -> T Frary | D30: =+VLOOKUP(+$A30,'Data Input'!$A$3:$AX$39,4,FALSE) -> 31.4 | E30: =+VLOOKUP(+$A30,'Data Input'!$A$3:$AX$39,5,FALSE) -> 17 | F30: =+VLOOKUP(+$A30,'Data Input'!$A$3:$AX$39,6,FALSE) -> 0 | G30: =+VLOOKUP(+$A30,'Data Input'!$A$3:$AX$39,7,FALSE) -> A | H30: =+VLOOKUP($A30,'Data Input'!$A$3:$AX$39,27,FALSE) -> 3 | I30: =+VLOOKUP($A30,'Data Input'!$A$3:$AX$39,28,FALSE) -> 53 | J30: =+VLOOKUP($A30,'Data Input'!$A$3:$AX$39,29,FALSE) -> 34 | L30: =+VLOOKUP($A30,'Data Input'!$A$3:$AX$39,31,FALSE) -> 1 | N30: FIRST
A31: 418 | B31: =+VLOOKUP(+$A31,'Data Input'!$A$3:$AX$39,2,FALSE) -> Tinkerbell | C31: =+VLOOKUP(+$A31,'Data Input'!$A$3:$AX$39,3,FALSE) -> A Lincoln | D31: =+VLOOKUP(+$A31,'Data Input'!$A$3:$AX$39,4,FALSE) -> 25.2 | E31: =+VLOOKUP(+$A31,'Data Input'!$A$3:$AX$39,5,FALSE) -> -8 | F31: =+VLOOKUP(+$A31,'Data Input'!$A$3:$AX$39,6,FALSE) ->  | G31: =+VLOOKUP(+$A31,'Data Input'!$A$3:$AX$39,7,FALSE) -> B | H31: =+VLOOKUP($A31,'Data Input'!$A$3:$AX$39,27,FALSE) -> 5 | I31: =+VLOOKUP($A31,'Data Input'!$A$3:$AX$39,28,FALSE) -> 16 | J31: =+VLOOKUP($A31,'Data Input'!$A$3:$AX$39,29,FALSE) -> 18 | L31: =+VLOOKUP($A31,'Data Input'!$A$3:$AX$39,31,FALSE) -> 7
A32: 420 | B32: =+VLOOKUP(+$A32,'Data Input'!$A$3:$AX$39,2,FALSE) -> Lyra | C32: =+VLOOKUP(+$A32,'Data Input'!$A$3:$AX$39,3,FALSE) -> P Carrington | D32: =+VLOOKUP(+$A32,'Data Input'!$A$3:$AX$39,4,FALSE) -> 30 | E32: =+VLOOKUP(+$A32,'Data Input'!$A$3:$AX$39,5,FALSE) -> 16 | F32: =+VLOOKUP(+$A32,'Data Input'!$A$3:$AX$39,6,FALSE) -> DNS | G32: =+VLOOKUP(+$A32,'Data Input'!$A$3:$AX$39,7,FALSE) -> A | H32: =+VLOOKUP($A32,'Data Input'!$A$3:$AX$39,27,FALSE) -> 0 | I32: =+VLOOKUP($A32,'Data Input'!$A$3:$AX$39,28,FALSE) -> 0 | J32: =+VLOOKUP($A32,'Data Input'!$A$3:$AX$39,29,FALSE) -> 0 | L32: =+VLOOKUP($A32,'Data Input'!$A$3:$AX$39,31,FALSE) -> DNS
A33: 429 | B33: =+VLOOKUP(+$A33,'Data Input'!$A$3:$AX$39,2,FALSE) -> Pickle | C33: =+VLOOKUP(+$A33,'Data Input'!$A$3:$AX$39,3,FALSE) -> P Montague | D33: =+VLOOKUP(+$A33,'Data Input'!$A$3:$AX$39,4,FALSE) -> 22.6 | E33: =+VLOOKUP(+$A33,'Data Input'!$A$3:$AX$39,5,FALSE) -> -16 | F33: =+VLOOKUP(+$A33,'Data Input'!$A$3:$AX$39,6,FALSE) -> 0 | G33: =+VLOOKUP(+$A33,'Data Input'!$A$3:$AX$39,7,FALSE) -> C | H33: =+VLOOKUP($A33,'Data Input'!$A$3:$AX$39,27,FALSE) -> 5 | I33: =+VLOOKUP($A33,'Data Input'!$A$3:$AX$39,28,FALSE) -> 45 | J33: =+VLOOKUP($A33,'Data Input'!$A$3:$AX$39,29,FALSE) -> 55 | L33: =+VLOOKUP($A33,'Data Input'!$A$3:$AX$39,31,FALSE) -> 15
A41: =COUNT(A3:A40) -> 31

Sheet Classes
I1: Corrected | O1: Don’t use filters on this page
A2: No | B2: Yacht | C2: Skipper | D2: Length | E2: H/C | F2: P | G2: Class | H2: H | I2: M | J2: S | L2: Pos | O2: Sort will place into clases and then order. You can then insert rows with Trophy Name before printing
A3: 10 | B3: =+VLOOKUP(+$A3,'Data Input'!$A$3:$AX$39,2,FALSE) -> Flight | C3: =+VLOOKUP(+$A3,'Data Input'!$A$3:$AX$39,3,FALSE) -> J Farrow | D3: =+VLOOKUP(+$A3,'Data Input'!$A$3:$AX$39,4,FALSE) -> 29.11 | E3: =+VLOOKUP(+$A3,'Data Input'!$A$3:$AX$39,5,FALSE) -> -9 | F3: =+VLOOKUP(+$A3,'Data Input'!$A$3:$AX$39,6,FALSE) -> 0 | G3: =+VLOOKUP(+$A3,'Data Input'!$A$3:$AX$39,7,FALSE) -> A | H3: =+VLOOKUP($A3,'Data Input'!$A$3:$AX$39,33,FALSE) -> 5 | I3: =+VLOOKUP($A3,'Data Input'!$A$3:$AX$39,34,FALSE) -> 28 | J3: =+VLOOKUP($A3,'Data Input'!$A$3:$AX$39,35,FALSE) -> 25.14 | L3: =+VLOOKUP($A3,'Data Input'!$A$3:$AX$39,37,FALSE) -> 20 | O3: Starlight Lady
A4: 22 | B4: =+VLOOKUP(+$A4,'Data Input'!$A$3:$AX$39,2,FALSE) -> Moonraker | C4: =+VLOOKUP(+$A4,'Data Input'!$A$3:$AX$39,3,FALSE) -> P Jeckells | D4: =+VLOOKUP(+$A4,'Data Input'!$A$3:$AX$39,4,FALSE) -> 29.6 | E4: =+VLOOKUP(+$A4,'Data Input'!$A$3:$AX$39,5,FALSE) -> 2 | F4: =+VLOOKUP(+$A4,'Data Input'!$A$3:$AX$39,6,FALSE) -> 0 | G4: =+VLOOKUP(+$A4,'Data Input'!$A$3:$AX$39,7,FALSE) -> A | H4: =+VLOOKUP($A4,'Data Input'!$A$3:$AX$39,33,FALSE) -> 5 | I4: =+VLOOKUP($A4,'Data Input'!$A$3:$AX$39,34,FALSE) -> 13 | J4: =+VLOOKUP($A4,'Data Input'!$A$3:$AX$39,35,FALSE) -> 44.1 | L4: =+VLOOKUP($A4,'Data Input'!$A$3:$AX$39,37,FALSE) -> 9 | O4: Jeckells
A5: 24 | B5: =+VLOOKUP(+$A5,'Data Input'!$A$3:$AX$39,2,FALSE) -> Pippa | C5: =+VLOOKUP(+$A5,'Data Input'!$A$3:$AX$39,3,FALSE) -> G Angel | D5: =+VLOOKUP(+$A5,'Data Input'!$A$3:$AX$39,4,FALSE) -> 27.1 | E5: =+VLOOKUP(+$A5,'Data Input'!$A$3:$AX$39,5,FALSE) -> -7 | F5: =+VLOOKUP(+$A5,'Data Input'!$A$3:$AX$39,6,FALSE) -> 0 | G5: =+VLOOKUP(+$A5,'Data Input'!$A$3:$AX$39,7,FALSE) -> B | H5: =+VLOOKUP($A5,'Data Input'!$A$3:$AX$39,33,FALSE) -> 5 | I5: =+VLOOKUP($A5,'Data Input'!$A$3:$AX$39,34,FALSE) -> 27 | J5: =+VLOOKUP($A5,'Data Input'!$A$3:$AX$39,35,FALSE) -> 3 | L5: =+VLOOKUP($A5,'Data Input'!$A$3:$AX$39,37,FALSE) -> 18 | O5: Wilberforce Smith
A6: 25 | B6: =+VLOOKUP(+$A6,'Data Input'!$A$3:$AX$39,2,FALSE) -> Melody | C6: =+VLOOKUP(+$A6,'Data Input'!$A$3:$AX$39,3,FALSE) -> M Wells | D6: =+VLOOKUP(+$A6,'Data Input'!$A$3:$AX$39,4,FALSE) -> 26 | E6: =+VLOOKUP(+$A6,'Data Input'!$A$3:$AX$39,5,FALSE) -> -11 | F6: =+VLOOKUP(+$A6,'Data Input'!$A$3:$AX$39,6,FALSE) -> 0 | G6: =+VLOOKUP(+$A6,'Data Input'!$A$3:$AX$39,7,FALSE) -> B | H6: =+VLOOKUP($A6,'Data Input'!$A$3:$AX$39,33,FALSE) -> 5 | I6: =+VLOOKUP($A6,'Data Input'!$A$3:$AX$39,34,FALSE) -> 30 | J6: =+VLOOKUP($A6,'Data Input'!$A$3:$AX$39,35,FALSE) -> 20.3 | L6: =+VLOOKUP($A6,'Data Input'!$A$3:$AX$39,37,FALSE) -> 22
A7: 52 | B7: =+VLOOKUP(+$A7,'Data Input'!$A$3:$AX$39,2,FALSE) -> Maidie | C7: =+VLOOKUP(+$A7,'Data Input'!$A$3:$AX$39,3,FALSE) -> M Barnes | D7: =+VLOOKUP(+$A7,'Data Input'!$A$3:$AX$39,4,FALSE) -> 43 | E7: =+VLOOKUP(+$A7,'Data Input'!$A$3:$AX$39,5,FALSE) -> 10 | F7: =+VLOOKUP(+$A7,'Data Input'!$A$3:$AX$39,6,FALSE) -> DNF | G7: =+VLOOKUP(+$A7,'Data Input'!$A$3:$AX$39,7,FALSE) -> A | H7: =+VLOOKUP($A7,'Data Input'!$A$3:$AX$39,33,FALSE) -> 15 | I7: =+VLOOKUP($A7,'Data Input'!$A$3:$AX$39,34,FALSE) -> 57 | J7: =+VLOOKUP($A7,'Data Input'!$A$3:$AX$39,35,FALSE) -> 0 | L7: =+VLOOKUP($A7,'Data Input'!$A$3:$AX$39,37,FALSE) -> DNF
A8: 79 | B8: =+VLOOKUP(+$A8,'Data Input'!$A$3:$AX$39,2,FALSE) -> Daisy | C8: =+VLOOKUP(+$A8,'Data Input'!$A$3:$AX$39,3,FALSE) -> T Ford | D8: =+VLOOKUP(+$A8,'Data Input'!$A$3:$AX$39,4,FALSE) -> 22 | E8: =+VLOOKUP(+$A8,'Data Input'!$A$3:$AX$39,5,FALSE) -> -25 | F8: =+VLOOKUP(+$A8,'Data Input'!$A$3:$AX$39,6,FALSE) -> 0 | G8: =+VLOOKUP(+$A8,'Data Input'!$A$3:$AX$39,7,FALSE) -> C | H8: =+VLOOKUP($A8,'Data Input'!$A$3:$AX$39,33,FALSE) -> 6 | I8: =+VLOOKUP($A8,'Data Input'!$A$3:$AX$39,34,FALSE) -> 7 | J8: =+VLOOKUP($A8,'Data Input'!$A$3:$AX$39,35,FALSE) -> 49.5 | L8: =+VLOOKUP($A8,'Data Input'!$A$3:$AX$39,37,FALSE) -> 25
A9: 87 | B9: =+VLOOKUP(+$A9,'Data Input'!$A$3:$AX$39,2,FALSE) -> Modwena | C9: =+VLOOKUP(+$A9,'Data Input'!$A$3:$AX$39,3,FALSE) -> M Cassidy | D9: =+VLOOKUP(+$A9,'Data Input'!$A$3:$AX$39,4,FALSE) -> 24.11 | E9: =+VLOOKUP(+$A9,'Data Input'!$A$3:$AX$39,5,FALSE) -> -19 | F9: =+VLOOKUP(+$A9,'Data Input'!$A$3:$AX$39,6,FALSE) -> 0 | G9: =+VLOOKUP(+$A9,'Data Input'!$A$3:$AX$39,7,FALSE) -> C | H9: =+VLOOKUP($A9,'Data Input'!$A$3:$AX$39,33,FALSE) -> 5 | I9: =+VLOOKUP($A9,'Data Input'!$A$3:$AX$39,34,FALSE) -> 22 | J9: =+VLOOKUP($A9,'Data Input'!$A$3:$AX$39,35,FALSE) -> 32.52 | L9: =+VLOOKUP($A9,'Data Input'!$A$3:$AX$39,37,FALSE) -> 15
A10: 141 | B10: =+VLOOKUP(+$A10,'Data Input'!$A$3:$AX$39,2,FALSE) -> Nirvana | C10: =+VLOOKUP(+$A10,'Data Input'!$A$3:$AX$39,3,FALSE) -> M Claridge | D10: =+VLOOKUP(+$A10,'Data Input'!$A$3:$AX$39,4,FALSE) -> 20 | E10: =+VLOOKUP(+$A10,'Data Input'!$A$3:$AX$39,5,FALSE) -> -23 | F10: =+VLOOKUP(+$A10,'Data Input'!$A$3:$AX$39,6,FALSE) -> DNS | G10: =+VLOOKUP(+$A10,'Data Input'!$A$3:$AX$39,7,FALSE) -> C | H10: =+VLOOKUP($A10,'Data Input'!$A$3:$AX$39,33,FALSE) -> 0 | I10: =+VLOOKUP($A10,'Data Input'!$A$3:$AX$39,34,FALSE) -> 0 | J10: =+VLOOKUP($A10,'Data Input'!$A$3:$AX$39,35,FALSE) -> 0 | L10: =+VLOOKUP($A10,'Data Input'!$A$3:$AX$39,37,FALSE) -> DNS
A11: 149 | B11: =+VLOOKUP(+$A11,'Data Input'!$A$3:$AX$39,2,FALSE) -> Stella Genesta | C11: =+VLOOKUP(+$A11,'Data Input'!$A$3:$AX$39,3,FALSE) -> M Burwood | D11: =+VLOOKUP(+$A11,'Data Input'!$A$3:$AX$39,4,FALSE) -> 30 | E11: =+VLOOKUP(+$A11,'Data Input'!$A$3:$AX$39,5,FALSE) -> -19 | F11: =+VLOOKUP(+$A11,'Data Input'!$A$3:$AX$39,6,FALSE) -> 0 | G11: =+VLOOKUP(+$A11,'Data Input'!$A$3:$AX$39,7,FALSE) -> A | H11: =+VLOOKUP($A11,'Data Input'!$A$3:$AX$39,33,FALSE) -> 5 | I11: =+VLOOKUP($A11,'Data Input'!$A$3:$AX$39,34,FALSE) -> 30 | J11: =+VLOOKUP($A11,'Data Input'!$A$3:$AX$39,35,FALSE) -> 15.84 | L11: =+VLOOKUP($A11,'Data Input'!$A$3:$AX$39,37,FALSE) -> 21
A12: 179 | B12: =+VLOOKUP(+$A12,'Data Input'!$A$3:$AX$39,2,FALSE) -> Waxwing | C12: =+VLOOKUP(+$A12,'Data Input'!$A$3:$AX$39,3,FALSE) -> R & S Clayton | D12: =+VLOOKUP(+$A12,'Data Input'!$A$3:$AX$39,4,FALSE) -> 27 | E12: =+VLOOKUP(+$A12,'Data Input'!$A$3:$AX$39,5,FALSE) -> -8 | F12: =+VLOOKUP(+$A12,'Data Input'!$A$3:$AX$39,6,FALSE) -> 0 | G12: =+VLOOKUP(+$A12,'Data Input'!$A$3:$AX$39,7,FALSE) -> B | H12: =+VLOOKUP($A12,'Data Input'!$A$3:$AX$39,33,FALSE) -> 5 | I12: =+VLOOKUP($A12,'Data Input'!$A$3:$AX$39,34,FALSE) -> 16 | J12: =+VLOOKUP($A12,'Data Input'!$A$3:$AX$39,35,FALSE) -> 15.92 | L12: =+VLOOKUP($A12,'Data Input'!$A$3:$AX$39,37,FALSE) -> 11
A13: 199 | B13: =+VLOOKUP(+$A13,'Data Input'!$A$3:$AX$39,2,FALSE) -> Morning Calm | C13: =+VLOOKUP(+$A13,'Data Input'!$A$3:$AX$39,3,FALSE) -> W Clark | D13: =+VLOOKUP(+$A13,'Data Input'!$A$3:$AX$39,4,FALSE) -> 26 | E13: =+VLOOKUP(+$A13,'Data Input'!$A$3:$AX$39,5,FALSE) -> -9 | F13: =+VLOOKUP(+$A13,'Data Input'!$A$3:$AX$39,6,FALSE) -> 0 | G13: =+VLOOKUP(+$A13,'Data Input'!$A$3:$AX$39,7,FALSE) -> B | H13: =+VLOOKUP($A13,'Data Input'!$A$3:$AX$39,33,FALSE) -> 5 | I13: =+VLOOKUP($A13,'Data Input'!$A$3:$AX$39,34,FALSE) -> 0 | J13: =+VLOOKUP($A13,'Data Input'!$A$3:$AX$39,35,FALSE) -> 53.49 | L13: =+VLOOKUP($A13,'Data Input'!$A$3:$AX$39,37,FALSE) -> 6
A14: 216 | B14: =+VLOOKUP(+$A14,'Data Input'!$A$3:$AX$39,2,FALSE) -> Tamara | C14: =+VLOOKUP(+$A14,'Data Input'!$A$3:$AX$39,3,FALSE) -> N Heath | D14: =+VLOOKUP(+$A14,'Data Input'!$A$3:$AX$39,4,FALSE) -> 24.8 | E14: =+VLOOKUP(+$A14,'Data Input'!$A$3:$AX$39,5,FALSE) -> -16 | F14: =+VLOOKUP(+$A14,'Data Input'!$A$3:$AX$39,6,FALSE) -> P | G14: =+VLOOKUP(+$A14,'Data Input'!$A$3:$AX$39,7,FALSE) -> C | H14: =+VLOOKUP($A14,'Data Input'!$A$3:$AX$39,33,FALSE) -> 5 | I14: =+VLOOKUP($A14,'Data Input'!$A$3:$AX$39,34,FALSE) -> 13 | J14: =+VLOOKUP($A14,'Data Input'!$A$3:$AX$39,35,FALSE) -> 30.96 | L14: =+VLOOKUP($A14,'Data Input'!$A$3:$AX$39,37,FALSE) -> P
A15: 217 | B15: =+VLOOKUP(+$A15,'Data Input'!$A$3:$AX$39,2,FALSE) -> Melinda | C15: =+VLOOKUP(+$A15,'Data Input'!$A$3:$AX$39,3,FALSE) -> P Howes | D15: =+VLOOKUP(+$A15,'Data Input'!$A$3:$AX$39,4,FALSE) -> 27.11 | E15: =+VLOOKUP(+$A15,'Data Input'!$A$3:$AX$39,5,FALSE) -> 1 | F15: =+VLOOKUP(+$A15,'Data Input'!$A$3:$AX$39,6,FALSE) -> 0 | G15: =+VLOOKUP(+$A15,'Data Input'!$A$3:$AX$39,7,FALSE) -> B | H15: =+VLOOKUP($A15,'Data Input'!$A$3:$AX$39,33,FALSE) -> 4 | I15: =+VLOOKUP($A15,'Data Input'!$A$3:$AX$39,34,FALSE) -> 53 | J15: =+VLOOKUP($A15,'Data Input'!$A$3:$AX$39,35,FALSE) -> 32.38 | L15: =+VLOOKUP($A15,'Data Input'!$A$3:$AX$39,37,FALSE) -> 4
A16: 218 | B16: =+VLOOKUP(+$A16,'Data Input'!$A$3:$AX$39,2,FALSE) -> Mystery | C16: =+VLOOKUP(+$A16,'Data Input'!$A$3:$AX$39,3,FALSE) -> M Ford | D16: =+VLOOKUP(+$A16,'Data Input'!$A$3:$AX$39,4,FALSE) -> 26 | E16: =+VLOOKUP(+$A16,'Data Input'!$A$3:$AX$39,5,FALSE) -> -7 | F16: =+VLOOKUP(+$A16,'Data Input'!$A$3:$AX$39,6,FALSE) -> RTD | G16: =+VLOOKUP(+$A16,'Data Input'!$A$3:$AX$39,7,FALSE) -> B | H16: =+VLOOKUP($A16,'Data Input'!$A$3:$AX$39,33,FALSE) -> 12 | I16: =+VLOOKUP($A16,'Data Input'!$A$3:$AX$39,34,FALSE) -> 47 | J16: =+VLOOKUP($A16,'Data Input'!$A$3:$AX$39,35,FALSE) -> 15 | L16: =+VLOOKUP($A16,'Data Input'!$A$3:$AX$39,37,FALSE) -> RTD
A17: 224 | B17: =+VLOOKUP(+$A17,'Data Input'!$A$3:$AX$39,2,FALSE) -> Anna | C17: =+VLOOKUP(+$A17,'Data Input'!$A$3:$AX$39,3,FALSE) -> R Branscombe | D17: =+VLOOKUP(+$A17,'Data Input'!$A$3:$AX$39,4,FALSE) -> 25 | E17: =+VLOOKUP(+$A17,'Data Input'!$A$3:$AX$39,5,FALSE) -> -10 | F17: =+VLOOKUP(+$A17,'Data Input'!$A$3:$AX$39,6,FALSE) -> 0 | G17: =+VLOOKUP(+$A17,'Data Input'!$A$3:$AX$39,7,FALSE) -> B | H17: =+VLOOKUP($A17,'Data Input'!$A$3:$AX$39,33,FALSE) -> 5 | I17: =+VLOOKUP($A17,'Data Input'!$A$3:$AX$39,34,FALSE) -> 27 | J17: =+VLOOKUP($A17,'Data Input'!$A$3:$AX$39,35,FALSE) -> 40.5 | L17: =+VLOOKUP($A17,'Data Input'!$A$3:$AX$39,37,FALSE) -> 19
A18: 240 | B18: =+VLOOKUP(+$A18,'Data Input'!$A$3:$AX$39,2,FALSE) -> Avocet | C18: =+VLOOKUP(+$A18,'Data Input'!$A$3:$AX$39,3,FALSE) -> R Branford | D18: =+VLOOKUP(+$A18,'Data Input'!$A$3:$AX$39,4,FALSE) -> 28 | E18: =+VLOOKUP(+$A18,'Data Input'!$A$3:$AX$39,5,FALSE) -> -16 | F18: =+VLOOKUP(+$A18,'Data Input'!$A$3:$AX$39,6,FALSE) -> 0 | G18: =+VLOOKUP(+$A18,'Data Input'!$A$3:$AX$39,7,FALSE) -> B | H18: =+VLOOKUP($A18,'Data Input'!$A$3:$AX$39,33,FALSE) -> 5 | I18: =+VLOOKUP($A18,'Data Input'!$A$3:$AX$39,34,FALSE) -> 15 | J18: =+VLOOKUP($A18,'Data Input'!$A$3:$AX$39,35,FALSE) -> 42 | L18: =+VLOOKUP($A18,'Data Input'!$A$3:$AX$39,37,FALSE) -> 10
A19: 250 | B19: =+VLOOKUP(+$A19,'Data Input'!$A$3:$AX$39,2,FALSE) -> Storm | C19: =+VLOOKUP(+$A19,'Data Input'!$A$3:$AX$39,3,FALSE) -> M Thwaites | D19: =+VLOOKUP(+$A19,'Data Input'!$A$3:$AX$39,4,FALSE) -> 35 | E19: =+VLOOKUP(+$A19,'Data Input'!$A$3:$AX$39,5,FALSE) -> 16 | F19: =+VLOOKUP(+$A19,'Data Input'!$A$3:$AX$39,6,FALSE) -> 0 | G19: =+VLOOKUP(+$A19,'Data Input'!$A$3:$AX$39,7,FALSE) -> A | H19: =+VLOOKUP($A19,'Data Input'!$A$3:$AX$39,33,FALSE) -> 4 | I19: =+VLOOKUP($A19,'Data Input'!$A$3:$AX$39,34,FALSE) -> 54 | J19: =+VLOOKUP($A19,'Data Input'!$A$3:$AX$39,35,FALSE) -> 33.76 | L19: =+VLOOKUP($A19,'Data Input'!$A$3:$AX$39,37,FALSE) -> 5
A20: 262 | B20: =+VLOOKUP(+$A20,'Data Input'!$A$3:$AX$39,2,FALSE) -> Jessie May | C20: =+VLOOKUP(+$A20,'Data Input'!$A$3:$AX$39,3,FALSE) -> C Dugdale | D20: =+VLOOKUP(+$A20,'Data Input'!$A$3:$AX$39,4,FALSE) -> 27.11 | E20: =+VLOOKUP(+$A20,'Data Input'!$A$3:$AX$39,5,FALSE) -> -5 | F20: =+VLOOKUP(+$A20,'Data Input'!$A$3:$AX$39,6,FALSE) -> 0 | G20: =+VLOOKUP(+$A20,'Data Input'!$A$3:$AX$39,7,FALSE) -> B | H20: =+VLOOKUP($A20,'Data Input'!$A$3:$AX$39,33,FALSE) -> 5 | I20: =+VLOOKUP($A20,'Data Input'!$A$3:$AX$39,34,FALSE) -> 18 | J20: =+VLOOKUP($A20,'Data Input'!$A$3:$AX$39,35,FALSE) -> 37.8 | L20: =+VLOOKUP($A20,'Data Input'!$A$3:$AX$39,37,FALSE) -> 13
A21: 274 | B21: =+VLOOKUP(+$A21,'Data Input'!$A$3:$AX$39,2,FALSE) -> Elfin | C21: =+VLOOKUP(+$A21,'Data Input'!$A$3:$AX$39,3,FALSE) -> A Bond | D21: =+VLOOKUP(+$A21,'Data Input'!$A$3:$AX$39,4,FALSE) -> 20 | E21: =+VLOOKUP(+$A21,'Data Input'!$A$3:$AX$39,5,FALSE) -> -27 | F21: =+VLOOKUP(+$A21,'Data Input'!$A$3:$AX$39,6,FALSE) -> 0 | G21: =+VLOOKUP(+$A21,'Data Input'!$A$3:$AX$39,7,FALSE) -> C | H21: =+VLOOKUP($A21,'Data Input'!$A$3:$AX$39,33,FALSE) -> 6 | I21: =+VLOOKUP($A21,'Data Input'!$A$3:$AX$39,34,FALSE) -> 2 | J21: =+VLOOKUP($A21,'Data Input'!$A$3:$AX$39,35,FALSE) -> 44.95 | L21: =+VLOOKUP($A21,'Data Input'!$A$3:$AX$39,37,FALSE) -> 24
A22: 323 | B22: =+VLOOKUP(+$A22,'Data Input'!$A$3:$AX$39,2,FALSE) -> Starlight Lady | C22: =+VLOOKUP(+$A22,'Data Input'!$A$3:$AX$39,3,FALSE) -> N Matthews | D22: =+VLOOKUP(+$A22,'Data Input'!$A$3:$AX$39,4,FALSE) -> 30 | E22: =+VLOOKUP(+$A22,'Data Input'!$A$3:$AX$39,5,FALSE) -> 13 | F22: =+VLOOKUP(+$A22,'Data Input'!$A$3:$AX$39,6,FALSE) -> 0 | G22: =+VLOOKUP(+$A22,'Data Input'!$A$3:$AX$39,7,FALSE) -> A | H22: =+VLOOKUP($A22,'Data Input'!$A$3:$AX$39,33,FALSE) -> 5 | I22: =+VLOOKUP($A22,'Data Input'!$A$3:$AX$39,34,FALSE) -> 21 | J22: =+VLOOKUP($A22,'Data Input'!$A$3:$AX$39,35,FALSE) -> 27.97 | L22: =+VLOOKUP($A22,'Data Input'!$A$3:$AX$39,37,FALSE) -> 14
A23: 368 | B23: =+VLOOKUP(+$A23,'Data Input'!$A$3:$AX$39,2,FALSE) -> Wandering Rose | C23: =+VLOOKUP(+$A23,'Data Input'!$A$3:$AX$39,3,FALSE) -> D Radley | D23: =+VLOOKUP(+$A23,'Data Input'!$A$3:$AX$39,4,FALSE) -> 31.6 | E23: =+VLOOKUP(+$A23,'Data Input'!$A$3:$AX$39,5,FALSE) -> -2 | F23: =+VLOOKUP(+$A23,'Data Input'!$A$3:$AX$39,6,FALSE) -> 0 | G23: =+VLOOKUP(+$A23,'Data Input'!$A$3:$AX$39,7,FALSE) -> A | H23: =+VLOOKUP($A23,'Data Input'!$A$3:$AX$39,33,FALSE) -> 5 | I23: =+VLOOKUP($A23,'Data Input'!$A$3:$AX$39,34,FALSE) -> 26 | J23: =+VLOOKUP($A23,'Data Input'!$A$3:$AX$39,35,FALSE) -> 12.56 | L23: =+VLOOKUP($A23,'Data Input'!$A$3:$AX$39,37,FALSE) -> 17
A24: 369 | B24: =+VLOOKUP(+$A24,'Data Input'!$A$3:$AX$39,2,FALSE) -> Moonshadow | C24: =+VLOOKUP(+$A24,'Data Input'!$A$3:$AX$39,3,FALSE) -> N Hovey | D24: =+VLOOKUP(+$A24,'Data Input'!$A$3:$AX$39,4,FALSE) -> 31.6 | E24: =+VLOOKUP(+$A24,'Data Input'!$A$3:$AX$39,5,FALSE) -> 5 | F24: =+VLOOKUP(+$A24,'Data Input'!$A$3:$AX$39,6,FALSE) ->  | G24: =+VLOOKUP(+$A24,'Data Input'!$A$3:$AX$39,7,FALSE) -> A | H24: =+VLOOKUP($A24,'Data Input'!$A$3:$AX$39,33,FALSE) -> 5 | I24: =+VLOOKUP($A24,'Data Input'!$A$3:$AX$39,34,FALSE) -> 0 | J24: =+VLOOKUP($A24,'Data Input'!$A$3:$AX$39,35,FALSE) -> 55.8 | L24: =+VLOOKUP($A24,'Data Input'!$A$3:$AX$39,37,FALSE) -> 7
A25: 370 | B25: =+VLOOKUP(+$A25,'Data Input'!$A$3:$AX$39,2,FALSE) -> Glory | C25: =+VLOOKUP(+$A25,'Data Input'!$A$3:$AX$39,3,FALSE) -> C Brown | D25: =+VLOOKUP(+$A25,'Data Input'!$A$3:$AX$39,4,FALSE) -> 35 | E25: =+VLOOKUP(+$A25,'Data Input'!$A$3:$AX$39,5,FALSE) -> -6 | F25: =+VLOOKUP(+$A25,'Data Input'!$A$3:$AX$39,6,FALSE) ->  | G25: =+VLOOKUP(+$A25,'Data Input'!$A$3:$AX$39,7,FALSE) -> A | H25: =+VLOOKUP($A25,'Data Input'!$A$3:$AX$39,33,FALSE) -> 5 | I25: =+VLOOKUP($A25,'Data Input'!$A$3:$AX$39,34,FALSE) -> 25 | J25: =+VLOOKUP($A25,'Data Input'!$A$3:$AX$39,35,FALSE) -> 1.24 | L25: =+VLOOKUP($A25,'Data Input'!$A$3:$AX$39,37,FALSE) -> 16
A26: 375 | B26: =+VLOOKUP(+$A26,'Data Input'!$A$3:$AX$39,2,FALSE) -> Amaryllis | C26: =+VLOOKUP(+$A26,'Data Input'!$A$3:$AX$39,3,FALSE) -> C Tuckett | D26: =+VLOOKUP(+$A26,'Data Input'!$A$3:$AX$39,4,FALSE) -> 21.4 | E26: =+VLOOKUP(+$A26,'Data Input'!$A$3:$AX$39,5,FALSE) -> -10 | F26: =+VLOOKUP(+$A26,'Data Input'!$A$3:$AX$39,6,FALSE) -> 0 | G26: =+VLOOKUP(+$A26,'Data Input'!$A$3:$AX$39,7,FALSE) -> C | H26: =+VLOOKUP($A26,'Data Input'!$A$3:$AX$39,33,FALSE) -> 5 | I26: =+VLOOKUP($A26,'Data Input'!$A$3:$AX$39,34,FALSE) -> 4 | J26: =+VLOOKUP($A26,'Data Input'!$A$3:$AX$39,35,FALSE) -> 38.1 | L26: =+VLOOKUP($A26,'Data Input'!$A$3:$AX$39,37,FALSE) -> 8
A27: 400 | B27: =+VLOOKUP(+$A27,'Data Input'!$A$3:$AX$39,2,FALSE) -> Swallow | C27: =+VLOOKUP(+$A27,'Data Input'!$A$3:$AX$39,3,FALSE) -> K Halifax | D27: =+VLOOKUP(+$A27,'Data Input'!$A$3:$AX$39,4,FALSE) -> 26 | E27: =+VLOOKUP(+$A27,'Data Input'!$A$3:$AX$39,5,FALSE) -> -7 | F27: =+VLOOKUP(+$A27,'Data Input'!$A$3:$AX$39,6,FALSE) ->  | G27: =+VLOOKUP(+$A27,'Data Input'!$A$3:$AX$39,7,FALSE) -> B | H27: =+VLOOKUP($A27,'Data Input'!$A$3:$AX$39,33,FALSE) -> 5 | I27: =+VLOOKUP($A27,'Data Input'!$A$3:$AX$39,34,FALSE) -> 34 | J27: =+VLOOKUP($A27,'Data Input'!$A$3:$AX$39,35,FALSE) -> 41.49 | L27: =+VLOOKUP($A27,'Data Input'!$A$3:$AX$39,37,FALSE) -> 23
A28: 403 | B28: =+VLOOKUP(+$A28,'Data Input'!$A$3:$AX$39,2,FALSE) -> May | C28: =+VLOOKUP(+$A28,'Data Input'!$A$3:$AX$39,3,FALSE) -> K Rhead | D28: =+VLOOKUP(+$A28,'Data Input'!$A$3:$AX$39,4,FALSE) -> 30 | E28: =+VLOOKUP(+$A28,'Data Input'!$A$3:$AX$39,5,FALSE) -> -10 | F28: =+VLOOKUP(+$A28,'Data Input'!$A$3:$AX$39,6,FALSE) -> DNF | G28: =+VLOOKUP(+$A28,'Data Input'!$A$3:$AX$39,7,FALSE) -> A | H28: =+VLOOKUP($A28,'Data Input'!$A$3:$AX$39,33,FALSE) -> 11 | I28: =+VLOOKUP($A28,'Data Input'!$A$3:$AX$39,34,FALSE) -> 28 | J28: =+VLOOKUP($A28,'Data Input'!$A$3:$AX$39,35,FALSE) -> 30 | L28: =+VLOOKUP($A28,'Data Input'!$A$3:$AX$39,37,FALSE) -> DNF
A29: 416 | B29: =+VLOOKUP(+$A29,'Data Input'!$A$3:$AX$39,2,FALSE) -> Alice Rose | C29: =+VLOOKUP(+$A29,'Data Input'!$A$3:$AX$39,3,FALSE) -> T Riches | D29: =+VLOOKUP(+$A29,'Data Input'!$A$3:$AX$39,4,FALSE) -> 28.6 | E29: =+VLOOKUP(+$A29,'Data Input'!$A$3:$AX$39,5,FALSE) -> -7 | F29: =+VLOOKUP(+$A29,'Data Input'!$A$3:$AX$39,6,FALSE) -> 0 | G29: =+VLOOKUP(+$A29,'Data Input'!$A$3:$AX$39,7,FALSE) -> A | H29: =+VLOOKUP($A29,'Data Input'!$A$3:$AX$39,33,FALSE) -> 5 | I29: =+VLOOKUP($A29,'Data Input'!$A$3:$AX$39,34,FALSE) -> 17 | J29: =+VLOOKUP($A29,'Data Input'!$A$3:$AX$39,35,FALSE) -> 28.26 | L29: =+VLOOKUP($A29,'Data Input'!$A$3:$AX$39,37,FALSE) -> 12
A30: 417 | B30: =+VLOOKUP(+$A30,'Data Input'!$A$3:$AX$39,2,FALSE) -> Stellar | C30: =+VLOOKUP(+$A30,'Data Input'!$A$3:$AX$39,3,FALSE) -> T Frary | D30: =+VLOOKUP(+$A30,'Data Input'!$A$3:$AX$39,4,FALSE) -> 31.4 | E30: =+VLOOKUP(+$A30,'Data Input'!$A$3:$AX$39,5,FALSE) -> 17 | F30: =+VLOOKUP(+$A30,'Data Input'!$A$3:$AX$39,6,FALSE) -> 0 | G30: =+VLOOKUP(+$A30,'Data Input'!$A$3:$AX$39,7,FALSE) -> A | H30: =+VLOOKUP($A30,'Data Input'!$A$3:$AX$39,33,FALSE) -> 4 | I30: =+VLOOKUP($A30,'Data Input'!$A$3:$AX$39,34,FALSE) -> 33 | J30: =+VLOOKUP($A30,'Data Input'!$A$3:$AX$39,35,FALSE) -> 16.38 | L30: =+VLOOKUP($A30,'Data Input'!$A$3:$AX$39,37,FALSE) -> 1
A31: 418 | B31: =+VLOOKUP(+$A31,'Data Input'!$A$3:$AX$39,2,FALSE) -> Tinkerbell | C31: =+VLOOKUP(+$A31,'Data Input'!$A$3:$AX$39,3,FALSE) -> A Lincoln | D31: =+VLOOKUP(+$A31,'Data Input'!$A$3:$AX$39,4,FALSE) -> 25.2 | E31: =+VLOOKUP(+$A31,'Data Input'!$A$3:$AX$39,5,FALSE) -> -8 | F31: =+VLOOKUP(+$A31,'Data Input'!$A$3:$AX$39,6,FALSE) ->  | G31: =+VLOOKUP(+$A31,'Data Input'!$A$3:$AX$39,7,FALSE) -> B | H31: =+VLOOKUP($A31,'Data Input'!$A$3:$AX$39,33,FALSE) -> 4 | I31: =+VLOOKUP($A31,'Data Input'!$A$3:$AX$39,34,FALSE) -> 50 | J31: =+VLOOKUP($A31,'Data Input'!$A$3:$AX$39,35,FALSE) -> 59.76 | L31: =+VLOOKUP($A31,'Data Input'!$A$3:$AX$39,37,FALSE) -> 3
A32: 420 | B32: =+VLOOKUP(+$A32,'Data Input'!$A$3:$AX$39,2,FALSE) -> Lyra | C32: =+VLOOKUP(+$A32,'Data Input'!$A$3:$AX$39,3,FALSE) -> P Carrington | D32: =+VLOOKUP(+$A32,'Data Input'!$A$3:$AX$39,4,FALSE) -> 30 | E32: =+VLOOKUP(+$A32,'Data Input'!$A$3:$AX$39,5,FALSE) -> 16 | F32: =+VLOOKUP(+$A32,'Data Input'!$A$3:$AX$39,6,FALSE) -> DNS | G32: =+VLOOKUP(+$A32,'Data Input'!$A$3:$AX$39,7,FALSE) -> A | H32: =+VLOOKUP($A32,'Data Input'!$A$3:$AX$39,33,FALSE) -> 0 | I32: =+VLOOKUP($A32,'Data Input'!$A$3:$AX$39,34,FALSE) -> 0 | J32: =+VLOOKUP($A32,'Data Input'!$A$3:$AX$39,35,FALSE) -> 0 | L32: =+VLOOKUP($A32,'Data Input'!$A$3:$AX$39,37,FALSE) -> DNS
A33: 429 | B33: =+VLOOKUP(+$A33,'Data Input'!$A$3:$AX$39,2,FALSE) -> Pickle | C33: =+VLOOKUP(+$A33,'Data Input'!$A$3:$AX$39,3,FALSE) -> P Montague | D33: =+VLOOKUP(+$A33,'Data Input'!$A$3:$AX$39,4,FALSE) -> 22.6 | E33: =+VLOOKUP(+$A33,'Data Input'!$A$3:$AX$39,5,FALSE) -> -16 | F33: =+VLOOKUP(+$A33,'Data Input'!$A$3:$AX$39,6,FALSE) -> 0 | G33: =+VLOOKUP(+$A33,'Data Input'!$A$3:$AX$39,7,FALSE) -> C | H33: =+VLOOKUP($A33,'Data Input'!$A$3:$AX$39,33,FALSE) -> 4 | I33: =+VLOOKUP($A33,'Data Input'!$A$3:$AX$39,34,FALSE) -> 50 | J33: =+VLOOKUP($A33,'Data Input'!$A$3:$AX$39,35,FALSE) -> 34.2 | L33: =+VLOOKUP($A33,'Data Input'!$A$3:$AX$39,37,FALSE) -> 2
A53: =+COUNT(A3:A52) -> 31

Sheet Classes A
A1: Starlight Lady | I1: Corrected | N1: CLASS POSITION
A2: No | B2: Yacht | C2: Skipper | D2: Length | E2: H/C | F2: P | G2: Class | H2: H | I2: M | J2: S | L2: Pos
A3: 10 | B3: =+VLOOKUP(+$A3,'Data Input'!$A$3:$AX$39,2,FALSE) -> Flight | C3: =+VLOOKUP(+$A3,'Data Input'!$A$3:$AX$39,3,FALSE) -> J Farrow | D3: =+VLOOKUP(+$A3,'Data Input'!$A$3:$AX$39,4,FALSE) -> 29.11 | E3: =+VLOOKUP(+$A3,'Data Input'!$A$3:$AX$39,5,FALSE) -> -9 | F3: =+VLOOKUP(+$A3,'Data Input'!$A$3:$AX$39,6,FALSE) -> 0 | G3: =+VLOOKUP(+$A3,'Data Input'!$A$3:$AX$39,7,FALSE) -> A | H3: =+VLOOKUP($A3,'Data Input'!$A$3:$AX$39,33,FALSE) -> 5 | I3: =+VLOOKUP($A3,'Data Input'!$A$3:$AX$39,34,FALSE) -> 28 | J3: =+VLOOKUP($A3,'Data Input'!$A$3:$AX$39,35,FALSE) -> 25.14 | L3: =+VLOOKUP($A3,'Data Input'!$A$3:$AX$39,37,FALSE) -> 20 | N3: 9th
A4: 22 | B4: =+VLOOKUP(+$A4,'Data Input'!$A$3:$AX$39,2,FALSE) -> Moonraker | C4: =+VLOOKUP(+$A4,'Data Input'!$A$3:$AX$39,3,FALSE) -> P Jeckells | D4: =+VLOOKUP(+$A4,'Data Input'!$A$3:$AX$39,4,FALSE) -> 29.6 | E4: =+VLOOKUP(+$A4,'Data Input'!$A$3:$AX$39,5,FALSE) -> 2 | F4: =+VLOOKUP(+$A4,'Data Input'!$A$3:$AX$39,6,FALSE) -> 0 | G4: =+VLOOKUP(+$A4,'Data Input'!$A$3:$AX$39,7,FALSE) -> A | H4: =+VLOOKUP($A4,'Data Input'!$A$3:$AX$39,33,FALSE) -> 5 | I4: =+VLOOKUP($A4,'Data Input'!$A$3:$AX$39,34,FALSE) -> 13 | J4: =+VLOOKUP($A4,'Data Input'!$A$3:$AX$39,35,FALSE) -> 44.1 | L4: =+VLOOKUP($A4,'Data Input'!$A$3:$AX$39,37,FALSE) -> 9 | N4: 4th
A5: 52 | B5: =+VLOOKUP(+$A5,'Data Input'!$A$3:$AX$39,2,FALSE) -> Maidie | C5: =+VLOOKUP(+$A5,'Data Input'!$A$3:$AX$39,3,FALSE) -> M Barnes | D5: =+VLOOKUP(+$A5,'Data Input'!$A$3:$AX$39,4,FALSE) -> 43 | E5: =+VLOOKUP(+$A5,'Data Input'!$A$3:$AX$39,5,FALSE) -> 10 | F5: =+VLOOKUP(+$A5,'Data Input'!$A$3:$AX$39,6,FALSE) -> DNF | G5: =+VLOOKUP(+$A5,'Data Input'!$A$3:$AX$39,7,FALSE) -> A | H5: =+VLOOKUP($A5,'Data Input'!$A$3:$AX$39,33,FALSE) -> 15 | I5: =+VLOOKUP($A5,'Data Input'!$A$3:$AX$39,34,FALSE) -> 57 | J5: =+VLOOKUP($A5,'Data Input'!$A$3:$AX$39,35,FALSE) -> 0 | L5: =+VLOOKUP($A5,'Data Input'!$A$3:$AX$39,37,FALSE) -> DNF
A6: 149 | B6: =+VLOOKUP(+$A6,'Data Input'!$A$3:$AX$39,2,FALSE) -> Stella Genesta | C6: =+VLOOKUP(+$A6,'Data Input'!$A$3:$AX$39,3,FALSE) -> M Burwood | D6: =+VLOOKUP(+$A6,'Data Input'!$A$3:$AX$39,4,FALSE) -> 30 | E6: =+VLOOKUP(+$A6,'Data Input'!$A$3:$AX$39,5,FALSE) -> -19 | F6: =+VLOOKUP(+$A6,'Data Input'!$A$3:$AX$39,6,FALSE) -> 0 | G6: =+VLOOKUP(+$A6,'Data Input'!$A$3:$AX$39,7,FALSE) -> A | H6: =+VLOOKUP($A6,'Data Input'!$A$3:$AX$39,33,FALSE) -> 5 | I6: =+VLOOKUP($A6,'Data Input'!$A$3:$AX$39,34,FALSE) -> 30 | J6: =+VLOOKUP($A6,'Data Input'!$A$3:$AX$39,35,FALSE) -> 15.84 | L6: =+VLOOKUP($A6,'Data Input'!$A$3:$AX$39,37,FALSE) -> 21 | N6: 10th
A7: 250 | B7: =+VLOOKUP(+$A7,'Data Input'!$A$3:$AX$39,2,FALSE) -> Storm | C7: =+VLOOKUP(+$A7,'Data Input'!$A$3:$AX$39,3,FALSE) -> M Thwaites | D7: =+VLOOKUP(+$A7,'Data Input'!$A$3:$AX$39,4,FALSE) -> 35 | E7: =+VLOOKUP(+$A7,'Data Input'!$A$3:$AX$39,5,FALSE) -> 16 | F7: =+VLOOKUP(+$A7,'Data Input'!$A$3:$AX$39,6,FALSE) -> 0 | G7: =+VLOOKUP(+$A7,'Data Input'!$A$3:$AX$39,7,FALSE) -> A | H7: =+VLOOKUP($A7,'Data Input'!$A$3:$AX$39,33,FALSE) -> 4 | I7: =+VLOOKUP($A7,'Data Input'!$A$3:$AX$39,34,FALSE) -> 54 | J7: =+VLOOKUP($A7,'Data Input'!$A$3:$AX$39,35,FALSE) -> 33.76 | L7: =+VLOOKUP($A7,'Data Input'!$A$3:$AX$39,37,FALSE) -> 5 | N7: SECOND
A8: 323 | B8: =+VLOOKUP(+$A8,'Data Input'!$A$3:$AX$39,2,FALSE) -> Starlight Lady | C8: =+VLOOKUP(+$A8,'Data Input'!$A$3:$AX$39,3,FALSE) -> N Matthews | D8: =+VLOOKUP(+$A8,'Data Input'!$A$3:$AX$39,4,FALSE) -> 30 | E8: =+VLOOKUP(+$A8,'Data Input'!$A$3:$AX$39,5,FALSE) -> 13 | F8: =+VLOOKUP(+$A8,'Data Input'!$A$3:$AX$39,6,FALSE) -> 0 | G8: =+VLOOKUP(+$A8,'Data Input'!$A$3:$AX$39,7,FALSE) -> A | H8: =+VLOOKUP($A8,'Data Input'!$A$3:$AX$39,33,FALSE) -> 5 | I8: =+VLOOKUP($A8,'Data Input'!$A$3:$AX$39,34,FALSE) -> 21 | J8: =+VLOOKUP($A8,'Data Input'!$A$3:$AX$39,35,FALSE) -> 27.97 | L8: =+VLOOKUP($A8,'Data Input'!$A$3:$AX$39,37,FALSE) -> 14 | N8: 6th
A9: 368 | B9: =+VLOOKUP(+$A9,'Data Input'!$A$3:$AX$39,2,FALSE) -> Wandering Rose | C9: =+VLOOKUP(+$A9,'Data Input'!$A$3:$AX$39,3,FALSE) -> D Radley | D9: =+VLOOKUP(+$A9,'Data Input'!$A$3:$AX$39,4,FALSE) -> 31.6 | E9: =+VLOOKUP(+$A9,'Data Input'!$A$3:$AX$39,5,FALSE) -> -2 | F9: =+VLOOKUP(+$A9,'Data Input'!$A$3:$AX$39,6,FALSE) -> 0 | G9: =+VLOOKUP(+$A9,'Data Input'!$A$3:$AX$39,7,FALSE) -> A | H9: =+VLOOKUP($A9,'Data Input'!$A$3:$AX$39,33,FALSE) -> 5 | I9: =+VLOOKUP($A9,'Data Input'!$A$3:$AX$39,34,FALSE) -> 26 | J9: =+VLOOKUP($A9,'Data Input'!$A$3:$AX$39,35,FALSE) -> 12.56 | L9: =+VLOOKUP($A9,'Data Input'!$A$3:$AX$39,37,FALSE) -> 17 | N9: 8th
A10: 369 | B10: =+VLOOKUP(+$A10,'Data Input'!$A$3:$AX$39,2,FALSE) -> Moonshadow | C10: =+VLOOKUP(+$A10,'Data Input'!$A$3:$AX$39,3,FALSE) -> N Hovey | D10: =+VLOOKUP(+$A10,'Data Input'!$A$3:$AX$39,4,FALSE) -> 31.6 | E10: =+VLOOKUP(+$A10,'Data Input'!$A$3:$AX$39,5,FALSE) -> 5 | F10: =+VLOOKUP(+$A10,'Data Input'!$A$3:$AX$39,6,FALSE) ->  | G10: =+VLOOKUP(+$A10,'Data Input'!$A$3:$AX$39,7,FALSE) -> A | H10: =+VLOOKUP($A10,'Data Input'!$A$3:$AX$39,33,FALSE) -> 5 | I10: =+VLOOKUP($A10,'Data Input'!$A$3:$AX$39,34,FALSE) -> 0 | J10: =+VLOOKUP($A10,'Data Input'!$A$3:$AX$39,35,FALSE) -> 55.8 | L10: =+VLOOKUP($A10,'Data Input'!$A$3:$AX$39,37,FALSE) -> 7 | N10: THIRD
A11: 370 | B11: =+VLOOKUP(+$A11,'Data Input'!$A$3:$AX$39,2,FALSE) -> Glory | C11: =+VLOOKUP(+$A11,'Data Input'!$A$3:$AX$39,3,FALSE) -> C Brown | D11: =+VLOOKUP(+$A11,'Data Input'!$A$3:$AX$39,4,FALSE) -> 35 | E11: =+VLOOKUP(+$A11,'Data Input'!$A$3:$AX$39,5,FALSE) -> -6 | F11: =+VLOOKUP(+$A11,'Data Input'!$A$3:$AX$39,6,FALSE) ->  | G11: =+VLOOKUP(+$A11,'Data Input'!$A$3:$AX$39,7,FALSE) -> A | H11: =+VLOOKUP($A11,'Data Input'!$A$3:$AX$39,33,FALSE) -> 5 | I11: =+VLOOKUP($A11,'Data Input'!$A$3:$AX$39,34,FALSE) -> 25 | J11: =+VLOOKUP($A11,'Data Input'!$A$3:$AX$39,35,FALSE) -> 1.24 | L11: =+VLOOKUP($A11,'Data Input'!$A$3:$AX$39,37,FALSE) -> 16 | N11: 7th
A12: 403 | B12: =+VLOOKUP(+$A12,'Data Input'!$A$3:$AX$39,2,FALSE) -> May | C12: =+VLOOKUP(+$A12,'Data Input'!$A$3:$AX$39,3,FALSE) -> K Rhead | D12: =+VLOOKUP(+$A12,'Data Input'!$A$3:$AX$39,4,FALSE) -> 30 | E12: =+VLOOKUP(+$A12,'Data Input'!$A$3:$AX$39,5,FALSE) -> -10 | F12: =+VLOOKUP(+$A12,'Data Input'!$A$3:$AX$39,6,FALSE) -> DNF | G12: =+VLOOKUP(+$A12,'Data Input'!$A$3:$AX$39,7,FALSE) -> A | H12: =+VLOOKUP($A12,'Data Input'!$A$3:$AX$39,33,FALSE) -> 11 | I12: =+VLOOKUP($A12,'Data Input'!$A$3:$AX$39,34,FALSE) -> 28 | J12: =+VLOOKUP($A12,'Data Input'!$A$3:$AX$39,35,FALSE) -> 30 | L12: =+VLOOKUP($A12,'Data Input'!$A$3:$AX$39,37,FALSE) -> DNF
A13: 416 | B13: =+VLOOKUP(+$A13,'Data Input'!$A$3:$AX$39,2,FALSE) -> Alice Rose | C13: =+VLOOKUP(+$A13,'Data Input'!$A$3:$AX$39,3,FALSE) -> T Riches | D13: =+VLOOKUP(+$A13,'Data Input'!$A$3:$AX$39,4,FALSE) -> 28.6 | E13: =+VLOOKUP(+$A13,'Data Input'!$A$3:$AX$39,5,FALSE) -> -7 | F13: =+VLOOKUP(+$A13,'Data Input'!$A$3:$AX$39,6,FALSE) -> 0 | G13: =+VLOOKUP(+$A13,'Data Input'!$A$3:$AX$39,7,FALSE) -> A | H13: =+VLOOKUP($A13,'Data Input'!$A$3:$AX$39,33,FALSE) -> 5 | I13: =+VLOOKUP($A13,'Data Input'!$A$3:$AX$39,34,FALSE) -> 17 | J13: =+VLOOKUP($A13,'Data Input'!$A$3:$AX$39,35,FALSE) -> 28.26 | L13: =+VLOOKUP($A13,'Data Input'!$A$3:$AX$39,37,FALSE) -> 12 | N13: 5th
A14: 417 | B14: =+VLOOKUP(+$A14,'Data Input'!$A$3:$AX$39,2,FALSE) -> Stellar | C14: =+VLOOKUP(+$A14,'Data Input'!$A$3:$AX$39,3,FALSE) -> T Frary | D14: =+VLOOKUP(+$A14,'Data Input'!$A$3:$AX$39,4,FALSE) -> 31.4 | E14: =+VLOOKUP(+$A14,'Data Input'!$A$3:$AX$39,5,FALSE) -> 17 | F14: =+VLOOKUP(+$A14,'Data Input'!$A$3:$AX$39,6,FALSE) -> 0 | G14: =+VLOOKUP(+$A14,'Data Input'!$A$3:$AX$39,7,FALSE) -> A | H14: =+VLOOKUP($A14,'Data Input'!$A$3:$AX$39,33,FALSE) -> 4 | I14: =+VLOOKUP($A14,'Data Input'!$A$3:$AX$39,34,FALSE) -> 33 | J14: =+VLOOKUP($A14,'Data Input'!$A$3:$AX$39,35,FALSE) -> 16.38 | L14: =+VLOOKUP($A14,'Data Input'!$A$3:$AX$39,37,FALSE) -> 1 | N14: FIRST
A15: 420 | B15: =+VLOOKUP(+$A15,'Data Input'!$A$3:$AX$39,2,FALSE) -> Lyra | C15: =+VLOOKUP(+$A15,'Data Input'!$A$3:$AX$39,3,FALSE) -> P Carrington | D15: =+VLOOKUP(+$A15,'Data Input'!$A$3:$AX$39,4,FALSE) -> 30 | E15: =+VLOOKUP(+$A15,'Data Input'!$A$3:$AX$39,5,FALSE) -> 16 | F15: =+VLOOKUP(+$A15,'Data Input'!$A$3:$AX$39,6,FALSE) -> DNS | G15: =+VLOOKUP(+$A15,'Data Input'!$A$3:$AX$39,7,FALSE) -> A | H15: =+VLOOKUP($A15,'Data Input'!$A$3:$AX$39,33,FALSE) -> 0 | I15: =+VLOOKUP($A15,'Data Input'!$A$3:$AX$39,34,FALSE) -> 0 | J15: =+VLOOKUP($A15,'Data Input'!$A$3:$AX$39,35,FALSE) -> 0 | L15: =+VLOOKUP($A15,'Data Input'!$A$3:$AX$39,37,FALSE) -> DNS
A23: =+COUNT(A3:A22) -> 13

Sheet Classes B
A1: Jeckells | I1: Corrected | N1: CLASS POSITION
A2: No | B2: Yacht | C2: Skipper | D2: Length | E2: H/C | F2: P | G2: Class | H2: H | I2: M | J2: S | L2: Pos
A3: 24 | B3: =+VLOOKUP(+$A3,'Data Input'!$A$3:$AX$39,2,FALSE) -> Pippa | C3: =+VLOOKUP(+$A3,'Data Input'!$A$3:$AX$39,3,FALSE) -> G Angel | D3: =+VLOOKUP(+$A3,'Data Input'!$A$3:$AX$39,4,FALSE) -> 27.1 | E3: =+VLOOKUP(+$A3,'Data Input'!$A$3:$AX$39,5,FALSE) -> -7 | F3: =+VLOOKUP(+$A3,'Data Input'!$A$3:$AX$39,6,FALSE) -> 0 | G3: =+VLOOKUP(+$A3,'Data Input'!$A$3:$AX$39,7,FALSE) -> B | H3: =+VLOOKUP($A3,'Data Input'!$A$3:$AX$39,33,FALSE) -> 5 | I3: =+VLOOKUP($A3,'Data Input'!$A$3:$AX$39,34,FALSE) -> 27 | J3: =+VLOOKUP($A3,'Data Input'!$A$3:$AX$39,35,FALSE) -> 3 | L3: =+VLOOKUP($A3,'Data Input'!$A$3:$AX$39,37,FALSE) -> 18 | N3: 7th
A4: 25 | B4: =+VLOOKUP(+$A4,'Data Input'!$A$3:$AX$39,2,FALSE) -> Melody | C4: =+VLOOKUP(+$A4,'Data Input'!$A$3:$AX$39,3,FALSE) -> M Wells | D4: =+VLOOKUP(+$A4,'Data Input'!$A$3:$AX$39,4,FALSE) -> 26 | E4: =+VLOOKUP(+$A4,'Data Input'!$A$3:$AX$39,5,FALSE) -> -11 | F4: =+VLOOKUP(+$A4,'Data Input'!$A$3:$AX$39,6,FALSE) -> 0 | G4: =+VLOOKUP(+$A4,'Data Input'!$A$3:$AX$39,7,FALSE) -> B | H4: =+VLOOKUP($A4,'Data Input'!$A$3:$AX$39,33,FALSE) -> 5 | I4: =+VLOOKUP($A4,'Data Input'!$A$3:$AX$39,34,FALSE) -> 30 | J4: =+VLOOKUP($A4,'Data Input'!$A$3:$AX$39,35,FALSE) -> 20.3 | L4: =+VLOOKUP($A4,'Data Input'!$A$3:$AX$39,37,FALSE) -> 22 | N4: 9th
A5: 179 | B5: =+VLOOKUP(+$A5,'Data Input'!$A$3:$AX$39,2,FALSE) -> Waxwing | C5: =+VLOOKUP(+$A5,'Data Input'!$A$3:$AX$39,3,FALSE) -> R & S Clayton | D5: =+VLOOKUP(+$A5,'Data Input'!$A$3:$AX$39,4,FALSE) -> 27 | E5: =+VLOOKUP(+$A5,'Data Input'!$A$3:$AX$39,5,FALSE) -> -8 | F5: =+VLOOKUP(+$A5,'Data Input'!$A$3:$AX$39,6,FALSE) -> 0 | G5: =+VLOOKUP(+$A5,'Data Input'!$A$3:$AX$39,7,FALSE) -> B | H5: =+VLOOKUP($A5,'Data Input'!$A$3:$AX$39,33,FALSE) -> 5 | I5: =+VLOOKUP($A5,'Data Input'!$A$3:$AX$39,34,FALSE) -> 16 | J5: =+VLOOKUP($A5,'Data Input'!$A$3:$AX$39,35,FALSE) -> 15.92 | L5: =+VLOOKUP($A5,'Data Input'!$A$3:$AX$39,37,FALSE) -> 11 | N5: 5th
A6: 199 | B6: =+VLOOKUP(+$A6,'Data Input'!$A$3:$AX$39,2,FALSE) -> Morning Calm | C6: =+VLOOKUP(+$A6,'Data Input'!$A$3:$AX$39,3,FALSE) -> W Clark | D6: =+VLOOKUP(+$A6,'Data Input'!$A$3:$AX$39,4,FALSE) -> 26 | E6: =+VLOOKUP(+$A6,'Data Input'!$A$3:$AX$39,5,FALSE) -> -9 | F6: =+VLOOKUP(+$A6,'Data Input'!$A$3:$AX$39,6,FALSE) -> 0 | G6: =+VLOOKUP(+$A6,'Data Input'!$A$3:$AX$39,7,FALSE) -> B | H6: =+VLOOKUP($A6,'Data Input'!$A$3:$AX$39,33,FALSE) -> 5 | I6: =+VLOOKUP($A6,'Data Input'!$A$3:$AX$39,34,FALSE) -> 0 | J6: =+VLOOKUP($A6,'Data Input'!$A$3:$AX$39,35,FALSE) -> 53.49 | L6: =+VLOOKUP($A6,'Data Input'!$A$3:$AX$39,37,FALSE) -> 6 | N6: THIRD
A7: 217 | B7: =+VLOOKUP(+$A7,'Data Input'!$A$3:$AX$39,2,FALSE) -> Melinda | C7: =+VLOOKUP(+$A7,'Data Input'!$A$3:$AX$39,3,FALSE) -> P Howes | D7: =+VLOOKUP(+$A7,'Data Input'!$A$3:$AX$39,4,FALSE) -> 27.11 | E7: =+VLOOKUP(+$A7,'Data Input'!$A$3:$AX$39,5,FALSE) -> 1 | F7: =+VLOOKUP(+$A7,'Data Input'!$A$3:$AX$39,6,FALSE) -> 0 | G7: =+VLOOKUP(+$A7,'Data Input'!$A$3:$AX$39,7,FALSE) -> B | H7: =+VLOOKUP($A7,'Data Input'!$A$3:$AX$39,33,FALSE) -> 4 | I7: =+VLOOKUP($A7,'Data Input'!$A$3:$AX$39,34,FALSE) -> 53 | J7: =+VLOOKUP($A7,'Data Input'!$A$3:$AX$39,35,FALSE) -> 32.38 | L7: =+VLOOKUP($A7,'Data Input'!$A$3:$AX$39,37,FALSE) -> 4 | N7: SECOND
A8: 218 | B8: =+VLOOKUP(+$A8,'Data Input'!$A$3:$AX$39,2,FALSE) -> Mystery | C8: =+VLOOKUP(+$A8,'Data Input'!$A$3:$AX$39,3,FALSE) -> M Ford | D8: =+VLOOKUP(+$A8,'Data Input'!$A$3:$AX$39,4,FALSE) -> 26 | E8: =+VLOOKUP(+$A8,'Data Input'!$A$3:$AX$39,5,FALSE) -> -7 | F8: =+VLOOKUP(+$A8,'Data Input'!$A$3:$AX$39,6,FALSE) -> RTD | G8: =+VLOOKUP(+$A8,'Data Input'!$A$3:$AX$39,7,FALSE) -> B | H8: =+VLOOKUP($A8,'Data Input'!$A$3:$AX$39,33,FALSE) -> 12 | I8: =+VLOOKUP($A8,'Data Input'!$A$3:$AX$39,34,FALSE) -> 47 | J8: =+VLOOKUP($A8,'Data Input'!$A$3:$AX$39,35,FALSE) -> 15 | L8: =+VLOOKUP($A8,'Data Input'!$A$3:$AX$39,37,FALSE) -> RTD
A9: 224 | B9: =+VLOOKUP(+$A9,'Data Input'!$A$3:$AX$39,2,FALSE) -> Anna | C9: =+VLOOKUP(+$A9,'Data Input'!$A$3:$AX$39,3,FALSE) -> R Branscombe | D9: =+VLOOKUP(+$A9,'Data Input'!$A$3:$AX$39,4,FALSE) -> 25 | E9: =+VLOOKUP(+$A9,'Data Input'!$A$3:$AX$39,5,FALSE) -> -10 | F9: =+VLOOKUP(+$A9,'Data Input'!$A$3:$AX$39,6,FALSE) -> 0 | G9: =+VLOOKUP(+$A9,'Data Input'!$A$3:$AX$39,7,FALSE) -> B | H9: =+VLOOKUP($A9,'Data Input'!$A$3:$AX$39,33,FALSE) -> 5 | I9: =+VLOOKUP($A9,'Data Input'!$A$3:$AX$39,34,FALSE) -> 27 | J9: =+VLOOKUP($A9,'Data Input'!$A$3:$AX$39,35,FALSE) -> 40.5 | L9: =+VLOOKUP($A9,'Data Input'!$A$3:$AX$39,37,FALSE) -> 19 | N9: 8th
A10: 240 | B10: =+VLOOKUP(+$A10,'Data Input'!$A$3:$AX$39,2,FALSE) -> Avocet | C10: =+VLOOKUP(+$A10,'Data Input'!$A$3:$AX$39,3,FALSE) -> R Branford | D10: =+VLOOKUP(+$A10,'Data Input'!$A$3:$AX$39,4,FALSE) -> 28 | E10: =+VLOOKUP(+$A10,'Data Input'!$A$3:$AX$39,5,FALSE) -> -16 | F10: =+VLOOKUP(+$A10,'Data Input'!$A$3:$AX$39,6,FALSE) -> 0 | G10: =+VLOOKUP(+$A10,'Data Input'!$A$3:$AX$39,7,FALSE) -> B | H10: =+VLOOKUP($A10,'Data Input'!$A$3:$AX$39,33,FALSE) -> 5 | I10: =+VLOOKUP($A10,'Data Input'!$A$3:$AX$39,34,FALSE) -> 15 | J10: =+VLOOKUP($A10,'Data Input'!$A$3:$AX$39,35,FALSE) -> 42 | L10: =+VLOOKUP($A10,'Data Input'!$A$3:$AX$39,37,FALSE) -> 10 | N10: 4th
A11: 262 | B11: =+VLOOKUP(+$A11,'Data Input'!$A$3:$AX$39,2,FALSE) -> Jessie May | C11: =+VLOOKUP(+$A11,'Data Input'!$A$3:$AX$39,3,FALSE) -> C Dugdale | D11: =+VLOOKUP(+$A11,'Data Input'!$A$3:$AX$39,4,FALSE) -> 27.11 | E11: =+VLOOKUP(+$A11,'Data Input'!$A$3:$AX$39,5,FALSE) -> -5 | F11: =+VLOOKUP(+$A11,'Data Input'!$A$3:$AX$39,6,FALSE) -> 0 | G11: =+VLOOKUP(+$A11,'Data Input'!$A$3:$AX$39,7,FALSE) -> B | H11: =+VLOOKUP($A11,'Data Input'!$A$3:$AX$39,33,FALSE) -> 5 | I11: =+VLOOKUP($A11,'Data Input'!$A$3:$AX$39,34,FALSE) -> 18 | J11: =+VLOOKUP($A11,'Data Input'!$A$3:$AX$39,35,FALSE) -> 37.8 | L11: =+VLOOKUP($A11,'Data Input'!$A$3:$AX$39,37,FALSE) -> 13 | N11: 6th
A12: 400 | B12: =+VLOOKUP(+$A12,'Data Input'!$A$3:$AX$39,2,FALSE) -> Swallow | C12: =+VLOOKUP(+$A12,'Data Input'!$A$3:$AX$39,3,FALSE) -> K Halifax | D12: =+VLOOKUP(+$A12,'Data Input'!$A$3:$AX$39,4,FALSE) -> 26 | E12: =+VLOOKUP(+$A12,'Data Input'!$A$3:$AX$39,5,FALSE) -> -7 | F12: =+VLOOKUP(+$A12,'Data Input'!$A$3:$AX$39,6,FALSE) ->  | G12: =+VLOOKUP(+$A12,'Data Input'!$A$3:$AX$39,7,FALSE) -> B | H12: =+VLOOKUP($A12,'Data Input'!$A$3:$AX$39,33,FALSE) -> 5 | I12: =+VLOOKUP($A12,'Data Input'!$A$3:$AX$39,34,FALSE) -> 34 | J12: =+VLOOKUP($A12,'Data Input'!$A$3:$AX$39,35,FALSE) -> 41.49 | L12: =+VLOOKUP($A12,'Data Input'!$A$3:$AX$39,37,FALSE) -> 23 | N12: 10th
A13: 418 | B13: =+VLOOKUP(+$A13,'Data Input'!$A$3:$AX$39,2,FALSE) -> Tinkerbell | C13: =+VLOOKUP(+$A13,'Data Input'!$A$3:$AX$39,3,FALSE) -> A Lincoln | D13: =+VLOOKUP(+$A13,'Data Input'!$A$3:$AX$39,4,FALSE) -> 25.2 | E13: =+VLOOKUP(+$A13,'Data Input'!$A$3:$AX$39,5,FALSE) -> -8 | F13: =+VLOOKUP(+$A13,'Data Input'!$A$3:$AX$39,6,FALSE) ->  | G13: =+VLOOKUP(+$A13,'Data Input'!$A$3:$AX$39,7,FALSE) -> B | H13: =+VLOOKUP($A13,'Data Input'!$A$3:$AX$39,33,FALSE) -> 4 | I13: =+VLOOKUP($A13,'Data Input'!$A$3:$AX$39,34,FALSE) -> 50 | J13: =+VLOOKUP($A13,'Data Input'!$A$3:$AX$39,35,FALSE) -> 59.76 | L13: =+VLOOKUP($A13,'Data Input'!$A$3:$AX$39,37,FALSE) -> 3 | N13: FIRST
A22: =+COUNT(A3:A21) -> 11

Sheet Classes C
A1: Wilberforce Smith | I1: Corrected
A2: No | B2: Yacht | C2: Skipper | D2: Length | E2: H/C | F2: P | G2: Class | H2: H | I2: M | J2: S | L2: Pos | N2: CLASS POSITION
A3: 79 | B3: =+VLOOKUP(+$A3,'Data Input'!$A$3:$AX$39,2,FALSE) -> Daisy | C3: =+VLOOKUP(+$A3,'Data Input'!$A$3:$AX$39,3,FALSE) -> T Ford | D3: =+VLOOKUP(+$A3,'Data Input'!$A$3:$AX$39,4,FALSE) -> 22 | E3: =+VLOOKUP(+$A3,'Data Input'!$A$3:$AX$39,5,FALSE) -> -25 | F3: =+VLOOKUP(+$A3,'Data Input'!$A$3:$AX$39,6,FALSE) -> 0 | G3: =+VLOOKUP(+$A3,'Data Input'!$A$3:$AX$39,7,FALSE) -> C | H3: =+VLOOKUP($A3,'Data Input'!$A$3:$AX$39,33,FALSE) -> 6 | I3: =+VLOOKUP($A3,'Data Input'!$A$3:$AX$39,34,FALSE) -> 7 | J3: =+VLOOKUP($A3,'Data Input'!$A$3:$AX$39,35,FALSE) -> 49.5 | L3: =+VLOOKUP($A3,'Data Input'!$A$3:$AX$39,37,FALSE) -> 25 | N3: 5th
A4: 87 | B4: =+VLOOKUP(+$A4,'Data Input'!$A$3:$AX$39,2,FALSE) -> Modwena | C4: =+VLOOKUP(+$A4,'Data Input'!$A$3:$AX$39,3,FALSE) -> M Cassidy | D4: =+VLOOKUP(+$A4,'Data Input'!$A$3:$AX$39,4,FALSE) -> 24.11 | E4: =+VLOOKUP(+$A4,'Data Input'!$A$3:$AX$39,5,FALSE) -> -19 | F4: =+VLOOKUP(+$A4,'Data Input'!$A$3:$AX$39,6,FALSE) -> 0 | G4: =+VLOOKUP(+$A4,'Data Input'!$A$3:$AX$39,7,FALSE) -> C | H4: =+VLOOKUP($A4,'Data Input'!$A$3:$AX$39,33,FALSE) -> 5 | I4: =+VLOOKUP($A4,'Data Input'!$A$3:$AX$39,34,FALSE) -> 22 | J4: =+VLOOKUP($A4,'Data Input'!$A$3:$AX$39,35,FALSE) -> 32.52 | L4: =+VLOOKUP($A4,'Data Input'!$A$3:$AX$39,37,FALSE) -> 15 | N4: THIRD
A5: 141 | B5: =+VLOOKUP(+$A5,'Data Input'!$A$3:$AX$39,2,FALSE) -> Nirvana | C5: =+VLOOKUP(+$A5,'Data Input'!$A$3:$AX$39,3,FALSE) -> M Claridge | D5: =+VLOOKUP(+$A5,'Data Input'!$A$3:$AX$39,4,FALSE) -> 20 | E5: =+VLOOKUP(+$A5,'Data Input'!$A$3:$AX$39,5,FALSE) -> -23 | F5: =+VLOOKUP(+$A5,'Data Input'!$A$3:$AX$39,6,FALSE) -> DNS | G5: =+VLOOKUP(+$A5,'Data Input'!$A$3:$AX$39,7,FALSE) -> C | H5: =+VLOOKUP($A5,'Data Input'!$A$3:$AX$39,33,FALSE) -> 0 | I5: =+VLOOKUP($A5,'Data Input'!$A$3:$AX$39,34,FALSE) -> 0 | J5: =+VLOOKUP($A5,'Data Input'!$A$3:$AX$39,35,FALSE) -> 0 | L5: =+VLOOKUP($A5,'Data Input'!$A$3:$AX$39,37,FALSE) -> DNS
A6: 216 | B6: =+VLOOKUP(+$A6,'Data Input'!$A$3:$AX$39,2,FALSE) -> Tamara | C6: =+VLOOKUP(+$A6,'Data Input'!$A$3:$AX$39,3,FALSE) -> N Heath | D6: =+VLOOKUP(+$A6,'Data Input'!$A$3:$AX$39,4,FALSE) -> 24.8 | E6: =+VLOOKUP(+$A6,'Data Input'!$A$3:$AX$39,5,FALSE) -> -16 | F6: =+VLOOKUP(+$A6,'Data Input'!$A$3:$AX$39,6,FALSE) -> P | G6: =+VLOOKUP(+$A6,'Data Input'!$A$3:$AX$39,7,FALSE) -> C | H6: =+VLOOKUP($A6,'Data Input'!$A$3:$AX$39,33,FALSE) -> 5 | I6: =+VLOOKUP($A6,'Data Input'!$A$3:$AX$39,34,FALSE) -> 13 | J6: =+VLOOKUP($A6,'Data Input'!$A$3:$AX$39,35,FALSE) -> 30.96 | L6: =+VLOOKUP($A6,'Data Input'!$A$3:$AX$39,37,FALSE) -> P
A7: 274 | B7: =+VLOOKUP(+$A7,'Data Input'!$A$3:$AX$39,2,FALSE) -> Elfin | C7: =+VLOOKUP(+$A7,'Data Input'!$A$3:$AX$39,3,FALSE) -> A Bond | D7: =+VLOOKUP(+$A7,'Data Input'!$A$3:$AX$39,4,FALSE) -> 20 | E7: =+VLOOKUP(+$A7,'Data Input'!$A$3:$AX$39,5,FALSE) -> -27 | F7: =+VLOOKUP(+$A7,'Data Input'!$A$3:$AX$39,6,FALSE) -> 0 | G7: =+VLOOKUP(+$A7,'Data Input'!$A$3:$AX$39,7,FALSE) -> C | H7: =+VLOOKUP($A7,'Data Input'!$A$3:$AX$39,33,FALSE) -> 6 | I7: =+VLOOKUP($A7,'Data Input'!$A$3:$AX$39,34,FALSE) -> 2 | J7: =+VLOOKUP($A7,'Data Input'!$A$3:$AX$39,35,FALSE) -> 44.95 | L7: =+VLOOKUP($A7,'Data Input'!$A$3:$AX$39,37,FALSE) -> 24 | N7: 4th
A8: 375 | B8: =+VLOOKUP(+$A8,'Data Input'!$A$3:$AX$39,2,FALSE) -> Amaryllis | C8: =+VLOOKUP(+$A8,'Data Input'!$A$3:$AX$39,3,FALSE) -> C Tuckett | D8: =+VLOOKUP(+$A8,'Data Input'!$A$3:$AX$39,4,FALSE) -> 21.4 | E8: =+VLOOKUP(+$A8,'Data Input'!$A$3:$AX$39,5,FALSE) -> -10 | F8: =+VLOOKUP(+$A8,'Data Input'!$A$3:$AX$39,6,FALSE) -> 0 | G8: =+VLOOKUP(+$A8,'Data Input'!$A$3:$AX$39,7,FALSE) -> C | H8: =+VLOOKUP($A8,'Data Input'!$A$3:$AX$39,33,FALSE) -> 5 | I8: =+VLOOKUP($A8,'Data Input'!$A$3:$AX$39,34,FALSE) -> 4 | J8: =+VLOOKUP($A8,'Data Input'!$A$3:$AX$39,35,FALSE) -> 38.1 | L8: =+VLOOKUP($A8,'Data Input'!$A$3:$AX$39,37,FALSE) -> 8 | N8: SECOND
A9: 429 | B9: =+VLOOKUP(+$A9,'Data Input'!$A$3:$AX$39,2,FALSE) -> Pickle | C9: =+VLOOKUP(+$A9,'Data Input'!$A$3:$AX$39,3,FALSE) -> P Montague | D9: =+VLOOKUP(+$A9,'Data Input'!$A$3:$AX$39,4,FALSE) -> 22.6 | E9: =+VLOOKUP(+$A9,'Data Input'!$A$3:$AX$39,5,FALSE) -> -16 | F9: =+VLOOKUP(+$A9,'Data Input'!$A$3:$AX$39,6,FALSE) -> 0 | G9: =+VLOOKUP(+$A9,'Data Input'!$A$3:$AX$39,7,FALSE) -> C | H9: =+VLOOKUP($A9,'Data Input'!$A$3:$AX$39,33,FALSE) -> 4 | I9: =+VLOOKUP($A9,'Data Input'!$A$3:$AX$39,34,FALSE) -> 50 | J9: =+VLOOKUP($A9,'Data Input'!$A$3:$AX$39,35,FALSE) -> 34.2 | L9: =+VLOOKUP($A9,'Data Input'!$A$3:$AX$39,37,FALSE) -> 2 | N9: FIRST
A15: =+COUNT(A3:A14) -> 7
